Workbook

Sheet Benefits_Interface
C2: Benefit Calculations
B4: ScenCompare will calculate benefits related to outcomes targeted by a management practice (direct benefits) and | P4: DROP DOWN LISTS - DO NOT REMOVE!
C5: benefits that arise from other outcomes of implementing the management practice selected to meet the target (co-benefits). | P5: Daily
B6: 1. Study Characteristics | P6: Monthly
P7: Annually
B8: 1A. | C8: Specify the year of the analysis. | E8: Specify the dollar year in which you'd like to evaluate benefits.
C9: 2017 | E9: $2017
C11: If calculating management option co-benefits (see Section 3), choose if you would like to calculate co-benefits using the global or domestic social cost of carbon.
C12: Global social cost of carbon | D12: ='Canopy Cover Benefit'!C7 -> 44.85591817 | E12: $/metric ton; delete either the global or domestic cost as appropriate
C13: Domestic social cost of carbon | E13: $/metric ton; delete either the global or domestic cost as appropriate | P13: $2016
P14: $2017
B15: 1B. | C15: ScenCompare uses several databases to calculate management option direct benefits and co-benefits. The databases are based on USGS' fourth level of hydrologic unit classification (HUC12). | P15: $2018
C16: Enter characteristics of your study area. Setup the HRU table before the HUC12 table. | H16: Enter the number of HUC12s that make up your study area (up to 20). | P16: $2019
P18: 2016
P19: 2017
C20: Select each data header for more information. | P20: 2018
C21: HRU Name | D21: Agricultural land | E21: Residential land | F21: Green space percentage | H21: HUC12 ID | I21: Proportion of HUC12 (percentage) | P21: 2019
C22: Turfgrass A/B Montgomery County | P22: 2020
C23: Turfgrass C/D Montgomery County | P23: 2021
C24: Turfgrass A/B City of Rockville | P24: 2022
C25: Turfgrass C/D City of Rockville | P25: 2023
C26: Turfgrass A/B MD State Highway Administration | P26: 2024
C27: Turfgrass C/D MD State Highway Administration | P27: 2025
C28: Turfgrass A/B Other Regulated | P28: 2026
C29: Turfgrass C/D Other Regulated | P29: 2027
C30: Natural | P30: 2028
C31: Water | P31: 2029
P32: 2030
P38: Northeast
P39: Great Lakes/Mid-Atlantic
P40: Southeast
P41: Lower Midwest
P42: Upper Midwest
P43: Rocky Mountains
P44: Texas
P45: Southwest
P46: Northwest
P47: California
P51: Wind
P52: Utility photovoltaic (PV)
P53: Portfolio energy efficiency
P54: Uniform energy efficiency
B55: 2. | C55: Calculation of Direct Benefits
C56: Once input values have been entered below, use this button to calculate the value of direct benefits.
C60: If any of the direct benefit calculations are inappropriate for your study area, leave the model run choices blank under step 2A.
B61: 2A. | C61: Choose the appropriate baseline and | E61: Fill out the blue input cells to compute the direct benefit value of…
C62: managed model runs below.
E64: Avoided water treatment costs
C65: Baseline Model Run | E65: Estimated ratio of turbidity to TSS | H65: 1.5 by default; see User Guide | K65: Total avoided water treatment costs
C66: TSS_BaselineWTP | E66: Cost of alum | H66: $/ton
C67: Managed Model Run | H67: $ year
C68: TSS_ScenWTP
E70: Use and non-use of water quality improvements
C71: Baseline Model Run - TN | E71: Indicate below if your case study falls into any of the three defined US regions.
C72: TN_Baseline | E72: If your case study does not fall into any of the three, leave all values as zero. | K72: Annualized willingness-to-pay for
C73: Baseline Model Run - TP | E73: Northeast | H73: 1 if located in the Northeast (ME, NH, VT, MA, RI, CT, and NY); 0 otherwise | K73: water quality changes
C74: TP_Baseline | E74: Central | H74: 1 if located in the Central US (OH, MI, IN, IL, WI, MN, IA, MO, ND, SD, NE, KS, MT, WY, UT, and CO); 0 otherwise
C75: Baseline Model Run - TSS | E75: South | H75: 1 if located in the South (NC, SC, GA, FL, KY, TN, MS, AL, AR, LA, OK, TX, and NM); 0 otherwise
C76: TSS_BaselineWTP
C77: Model Run Estimating TN Changes
C78: TN_Scenario
C79: Model Run Estimating TP Changes
C80: TP_Scenario | E80: Specify the dollar year of the income data. | H80: Specify the data frequency of BOD, DO, and FC data
C81: Model Run Estimating TSS Changes | H81: Monthly
C82: TSS_ScenWTP
K83: Total Direct Benefits
K84: =Alum_Savings+WTP_Value -> 0
B86: 3. Calculation of Co-benefits
C87: Select a model below using the drop-down list.
C88: Model run to calculate co-benefits | E88: TN_Scenario
C89: Once a model is selected, use this button to identify which BMPs were chosen by your model.
C93: If any of the co-benefit calculations are inappropriate for your study area, unbold the associated BMP under Step 3A.
C94: Once input values have been entered below, use this button to calculate the value of co-benefits.
B98: 3A. | C98: BMPs chosen by your model are | E98: Fill out the blue input cells to compute the co-benefit value of…
C99: in bold below.
E100: Change in housing property value due to improved aesthetic quality of the landscape from increases in green space
C101: Land Conservation | E101: Acres of increased green space | H101: WMOST results | K101: Change in property values
C102: Bioretention Basin | E102: Wetland | H102: 1 if wetland area is expected to increase; 0 otherwise
C103: Grass Swale | E103: Recreational | H103: 1 if recreational amenities are included; 0 otherwise
C104: Gravel Wetland
C105: Direct Reduction Tree Canopy
C106: Riparian Buffer
E108: Tree cover | H108: % of the increase in open space - bioretention basin
E109: Tree cover | H109: % of the increase in open space - grass swale
E110: Tree cover | H110: % of the increase in open space - gravel wetland
E111: Tree cover | H111: % of the increase in open space - riparian buffer
E112: Tree cover | H112: % of the increase in open space - direct reduction tree canopy
E113: Tree cover | H113: % of the increase in open space - Turfgrass A/B Montgomery County
E114: Tree cover | H114: % of the increase in open space - Turfgrass C/D Montgomery County
E115: Tree cover | H115: % of the increase in open space - Turfgrass A/B City of Rockville
E116: Tree cover | H116: % of the increase in open space - Turfgrass C/D City of Rockville
E117: Tree cover | H117: % of the increase in open space - Turfgrass A/B MD State Highway Administration
E118: Tree cover | H118: % of the increase in open space - Turfgrass C/D MD State Highway Administration
E119: Tree cover | H119: % of the increase in open space - Turfgrass A/B Other Regulated
E120: Tree cover | H120: % of the increase in open space - Turfgrass C/D Other Regulated
E121: Tree cover | H121: % of the increase in open space - Natural
E122: Tree cover | H122: % of the increase in open space - Water
E123: Tree cover | H123: % of the increase in open space - HRU1
E124: Tree cover | H124: % of the increase in open space - HRU1
E125: Tree cover | H125: % of the increase in open space - HRU1
E126: Tree cover | H126: % of the increase in open space - HRU1
E127: Tree cover | H127: % of the increase in open space - HRU1
E128: Tree cover | H128: % of the increase in open space - HRU1
E129: Tree cover | H129: % of the increase in open space - HRU1
E130: Tree cover | H130: % of the increase in open space - HRU1
E131: Tree cover | H131: % of the increase in open space - HRU1
E132: Tree cover | H132: % of the increase in open space - HRU1
E133: Tree cover | H133: % of the increase in open space - HRU1
E134: Tree cover | H134: % of the increase in open space - HRU1
E135: Tree cover | H135: % of the increase in open space - HRU1
E136: Tree cover | H136: % of the increase in open space - HRU1
E137: Tree cover | H137: % of the increase in open space - HRU1
E138: Tree cover | H138: % of the increase in open space - HRU1
E139: Tree cover | H139: % of the increase in open space - HRU1
E140: Tree cover | H140: % of the increase in open space - HRU1
E141: Tree cover | H141: % of the increase in open space - HRU1
E142: Tree cover | H142: % of the increase in open space - HRU1
E143: Tree cover | H143: % of the increase in open space - HRU1
E144: Tree cover | H144: % of the increase in open space - HRU1
E146: Air pollution removal and energy savings benefits related to canopy cover | K146: Canopy cover benefits
C147: Land Conservation | E147: Acres of increased canopy cover | G147: 59.16 | H147: WMOST results | J147: Lower Bound | K147: ='Canopy Cover Benefit'!C9+'Canopy Cover Benefit'!C23+'Canopy Cover Benefit'!C31+'Canopy Cover Benefit'!C47+'Canopy Cover Benefit'!C56 -> 27170.48878
C148: Direct Reduction Tree Canopy | E148: Population density | G148: =1039198/491.25 -> 2115.415776 | H148: people/square mile | J148: Upper Bound | K148: ='Canopy Cover Benefit'!C9+'Canopy Cover Benefit'!C23+'Canopy Cover Benefit'!C31+'Canopy Cover Benefit'!D47+'Canopy Cover Benefit'!C56 -> 38264.12234
C149: Riparian Buffer
E151: Air pollution removal and energy savings benefits related to green roofs | K151: Green roof benefits
C152: Green Roof | E152: Acres of green roof | G152: 10 | H152: WMOST results | J152: Lower Bound | K152: ='Green Roof Benefit'!B15+'Green Roof Benefit'!B20+'Green Roof Benefit'!B27 -> 21905.44424
E153: Direct energy savings | G153: 100000 | H153: kWh/year | J153: Upper Bound | K153: ='Green Roof Benefit'!C15+'Green Roof Benefit'!B20+'Green Roof Benefit'!B27 -> 27721.47734
E154: Location | G154: Great Lakes/Mid-Atlantic | H154: AVERT region
E155: Source of energy savings | G155: Uniform energy efficiency | H155: AVERT emission factor category
E156: Price of electricity for residential customers | G156: ='Green Roof Benefit'!B26 -> 139.6 | H156: $/MWh
G157: 2017 | H157: dollar year
K158: Total Co-Benefits

Sheet Canopy Cover Benefit
A1: Benefits from Canopy Cover -- ILLUSTRATIVE SAMPLE CALCULATIONS ** NOT TO BE DISTRIBUTED BROADLY
B3: Carbon Sequestration Benefits from Canopy Cover
B4: Increase in acres canopy cover (acres) | C4: =Benefits_Interface!$G$147 -> 59.16
B5: Rate of carbon sequestration (metric ton/acre) | C5: 0.77 | D5: https://www.epa.gov/energy/greenhouse-gases-equivalencies-calculator-calculations-and-references#_ftn1
B6: Total carbon sequestration (metric tons) | C6: =C4*C5 -> 45.5532
B7: Social cost of carbon ($/metric ton) (global; 2017$) | C7: =SCC_Regression!B5*('GDP Implicit Price Deflator'!BU8/'GDP Implicit Price Deflator'!BK8) -> 44.85591817
B8: Social cost of carbon ($/metric ton) (domestic; 2017$) | C8: =SCC_Regression!C5*('GDP Implicit Price Deflator'!BU8/'GDP Implicit Price Deflator'!BT8) -> 6.390599626
B9: Annual benefits, global (2017$) | C9: =C7*C6 -> 2043.330611
B10: Annual benefits, domestic (2017$) | C10: =C6*C8 -> 291.1122629
B12: Avoided Health Damages from Canopy Cover (Tree Removal) | G12: Pollutant Removal Rates (Nowak et al. 2014)
B13: Population Density (people/km2) | C13: =Benefits_Interface!$G$148/2.59 -> 816.7628479 | G13: Pollutant | H13: g/m^2 | I13: metric tons/acre
B14: Increase in tree cover (acres) | C14: =Benefits_Interface!$G$147 -> 59.16 | G14: NO2 | H14: 0.55 | I14: =(H14/10^6)/$C$61 -> 0.002225779935
B15: NO2 removed by tree cover (metric tons) | C15: =$C$14*I14 -> 0.131677141 | G15: SO2 | H15: 0.35 | I15: =(H15/10^6)/$C$61 -> 0.001416405413
B16: SO2 removed by tree cover (metric tons) | C16: =$C$14*I15 -> 0.08379454426 | G16: O3 | H16: 5.49 | I16: =(H16/10^6)/$C$61 -> 0.02221733063
B17: Ozone removed by tree cover (metric tons) | C17: =$C$14*I16 -> 1.31437728 | G17: PM2.5 | H17: 0.27 | I17: =(H17/10^6)/$C$61 -> 0.001092655605
B18: PM2.5 removed by tree cover (metric tons) | C18: =$C$14*I17 -> 0.06464150557
B19: Avoided health damages from NO2 (2017$) | C19: =(0.7298+(0.6264*C13))*C15*('GDP Implicit Price Deflator'!$BU$8/'GDP Implicit Price Deflator'!$BN$8) -> 75.77373137 | G19: Regressions estimating dollars per tonne (Nowak et al. 2014)
B20: Avoided health damages from SO2 (2017$) | C20: =(0.1442+(0.1493*C13))*C16*('GDP Implicit Price Deflator'!$BU$8/'GDP Implicit Price Deflator'!$BN$8) -> 11.49016565 | G20: NO2 | H20: 0.7298 + 0.6264 * pop density
B21: Avoided health damages from Ozone (2017$) | C21: =(9.4667+(3.5089*C13))*C17*('GDP Implicit Price Deflator'!$BU$8/'GDP Implicit Price Deflator'!$BN$8) -> 4244.833898 | G21: SO2 | H21: 0.1442 + 0.1493 * pop density
B22: Avoided health damages from PM2.5 (2017$) | C22: =(428.0011+(121.7864*C13))*C18*('GDP Implicit Price Deflator'!$BU$8/'GDP Implicit Price Deflator'!$BN$8) -> 7252.911935 | G22: O3 | H22: 9.4667 + 3.5089 * pop density
B23: Total Avoided health damages | C23: =SUM(C19:C22) -> 11585.00973 | G23: PM2.5 | H23: 428.0011 + 121.7864 * pop density
B25: Electricity Savings from Urban/Community Trees
B26: Location (state) | C26: Maryland
B27: Energy Savings $/ha tree cover (2009$) | C27: ='EnergySavings by State'!B20 -> 845.3337057
B28: Energy Savings $/ha tree cover (2017$) | C28: =C27*('GDP Implicit Price Deflator'!BU8/'GDP Implicit Price Deflator'!BM8) -> 960.5077982
B29: Increase in urban/community trees (acres) | C29: =Benefits_Interface!$G$152 -> 10
B30: Increase in urban/community trees (hectares) | C30: =C29*(1/C60) -> 4.04687261
B31: Electricity savings from canopy cover increase (2017$) | C31: =C30*C28 -> 3887.0527
B33: Avoided Health Damages from Urban/Community Trees (Avoided Power Plant Emissions)
B34: Location (state) | C34: Maryland
B35: Increase in urban/community trees (acres) | C35: =Benefits_Interface!$G$152 -> 10
B36: Increase in urban/community trees (hectares) | C36: =C35*(1/C60) -> 4.04687261
B37: NO2 avoided from U/C trees (U.S tons) | C37: =C36*AvoidedEmissions_UCTrees!I20*C62 -> 0.01852468696
B38: SO2 avoided from U/C trees (U.S. tons) | C38: =C36*AvoidedEmissions_UCTrees!J20*C62 -> 0.1919931079
B39: PM2.5 avoided from U/C trees (U.S. tons) | C39: =C36*AvoidedEmissions_UCTrees!K20*C62 -> 0.003450030667
C40: Low | D40: High
B41: Avoided health damages from NO2 (2015$) | C41: =C37*BenefitPerTon_Regression!D5 -> 111.5202881 | D41: =C37*BenefitPerTon_Regression!G5 -> 257.1293456
B42: Avoided health damages from SO2 (2015$) | C42: =C38*BenefitPerTon_Regression!C5 -> 7765.536134 | D42: =C38*BenefitPerTon_Regression!F5 -> 17732.70881
B43: Avoided health damages from PM2.5 (2015$) | C43: =C39*BenefitPerTon_Regression!B5 -> 492.8949005 | D43: =C39*BenefitPerTon_Regression!E5 -> 1149.101636
B44: Avoided health damages from NO2 (2017$) | C44: =C41*('GDP Implicit Price Deflator'!$BU$8/'GDP Implicit Price Deflator'!$BS$8) -> 114.8822115 | D44: =D41*('GDP Implicit Price Deflator'!$BU$8/'GDP Implicit Price Deflator'!$BS$8) -> 264.8808425
B45: Avoided health damages from SO2 (2017$) | C45: =C42*('GDP Implicit Price Deflator'!$BU$8/'GDP Implicit Price Deflator'!$BS$8) -> 7999.638269 | D45: =D42*('GDP Implicit Price Deflator'!$BU$8/'GDP Implicit Price Deflator'!$BS$8) -> 18267.28426
B46: Avoided health damages from PM2.5 (2017$) | C46: =C43*('GDP Implicit Price Deflator'!$BU$8/'GDP Implicit Price Deflator'!$BS$8) -> 507.7538551 | D46: =D43*('GDP Implicit Price Deflator'!$BU$8/'GDP Implicit Price Deflator'!$BS$8) -> 1183.742792
B47: Total Avoided health damages | C47: =SUM(C44:C46) -> 8622.274335 | D47: =SUM(D44:D46) -> 19715.9079
B49: Avoided CO2 emissions from Urban/Community Trees (Avoided Power Plant Emissions)
B50: Location (state) | C50: Maryland
B51: Increase in urban/community trees (acres) | C51: =Benefits_Interface!$G$152 -> 10
B52: Increase in urban/community trees (hectares) | C52: =C51*(1/C60) -> 4.04687261
B53: CO2 avoided from U/C trees (metric tons) | C53: =C52*AvoidedEmissions_UCTrees!L20 -> 23.02530968
B54: Social cost of carbon ($/metric ton) (global; 2017$) | C54: =SCC_Regression!B5*('GDP Implicit Price Deflator'!BU8/'GDP Implicit Price Deflator'!BK8) -> 44.85591817
B55: Social cost of carbon ($/metric ton) (domestic; 2017$) | C55: =SCC_Regression!C5*('GDP Implicit Price Deflator'!BU8/'GDP Implicit Price Deflator'!BT8) -> 6.390599626
B56: Annual benefits, global (2017$) | C56: =C54*C53 -> 1032.821407
B57: Annual benefits, domestic (2017$) | C57: =C53*C55 -> 147.1455354
B60: 1 hectare = 2.47104393046628 acres | C60: 2.47104393
B61: 1 m^2 = 0.000247104393046628 acres | C61: 0.000247104393
B62: 1 metric tons (tonnes) = 1.1023 U.S. tons (short tons) | C62: 1.1023

Sheet Green Roof Benefit
A1: Green roof calculator outputs | E1: Regional Emission rates (AVERT) - Uniform EE (2017)
A2: Electrical savings (kWh) | B2: =Benefits_Interface!$G$153 -> 100000 | E2: Region | F2: SO2 (lbs/MWh) | G2: NOx (lbs/MWh) | H2: CO2 (tons/MWh) | I2: PM2.5 (lbs/MWh)
A3: Electrical savings (MWh) | B3: =B2/1000 -> 100 | E3: Northeast | F3: =AVERT_2017!E29 -> 0.2830912254 | G3: =AVERT_2017!K16 -> 0.4310301251 | H3: =AVERT_2017!E16*0.0005 -> 0.5701369387 | I3: =AVERT_2017!K29 -> 0.0451665205
E4: Great Lakes/Mid-Atlantic | F4: =AVERT_2017!E30 -> 1.254978784 | G4: =AVERT_2017!K17 -> 0.9859061507 | H4: =AVERT_2017!E17*0.0005 -> 0.854470298 | I4: =AVERT_2017!K30 -> 0.2103850853
A5: Avoided Pollutants | E5: Southeast | F5: =AVERT_2017!E31 -> 0.7884920012 | G5: =AVERT_2017!K18 -> 0.9305264299 | H5: =AVERT_2017!E18*0.0005 -> 0.7670378807 | I5: =AVERT_2017!K31 -> 0.1045138598
A6: SO2 (lbs): | B6: =$B$3*INDEX(F$3:F$12,MATCH(Benefits_Interface!$G$154,'Green Roof Benefit'!$E$3:$E$12,0)) -> 125.4978784 | E6: Lower Midwest | F6: =AVERT_2017!E32 -> 1.877604839 | G6: =AVERT_2017!K19 -> 1.202439471 | H6: =AVERT_2017!E19*0.0005 -> 0.927579056 | I6: =AVERT_2017!K32 -> 0.09891248931
A7: NO2 (lbs): | B7: =$B$3*INDEX(G$3:G$12,MATCH(Benefits_Interface!$G$154,'Green Roof Benefit'!$E$3:$E$12,0)) -> 98.59061507 | E7: Upper Midwest | F7: =AVERT_2017!E33 -> 2.028600387 | G7: =AVERT_2017!K20 -> 1.380723488 | H7: =AVERT_2017!E20*0.0005 -> 1.004502262 | I7: =AVERT_2017!K33 -> 0.09855173383
A8: CO2 (short tons): | B8: =$B$3*INDEX(H$3:H$12,MATCH(Benefits_Interface!$G$154,'Green Roof Benefit'!$E$3:$E$12,0)) -> 85.4470298 | E8: Rocky Mountains | F8: =AVERT_2017!E34 -> 0.6004408961 | G8: =AVERT_2017!K21 -> 1.423136173 | H8: =AVERT_2017!E21*0.0005 -> 0.8689308506 | I8: =AVERT_2017!K34 -> 0.0363871885
A9: PM2.5 (lbs): | B9: =$B$3*INDEX(I$3:I$12,MATCH(Benefits_Interface!$G$154,'Green Roof Benefit'!$E$3:$E$12,0)) -> 21.03850853 | E9: Texas | F9: =AVERT_2017!E35 -> 1.317268707 | G9: =AVERT_2017!K22 -> 0.6533179696 | H9: =AVERT_2017!E22*0.0005 -> 0.6975584443 | I9: =AVERT_2017!K35 -> 0.07633690173
E10: Southwest | F10: =AVERT_2017!E36 -> 0.2431762627 | G10: =AVERT_2017!K23 -> 0.9866266804 | H10: =AVERT_2017!E23*0.0005 -> 0.6824210409 | I10: =AVERT_2017!K36 -> 0.07540075604
A11: Avoided Health Damages | B11: Low | C11: High | E11: Northwest | F11: =AVERT_2017!E37 -> 0.922289261 | G11: =AVERT_2017!K24 -> 1.292194916 | H11: =AVERT_2017!E24*0.0005 -> 0.8484121643 | I11: =AVERT_2017!K37 -> 0.08775666425
A12: SO2 (2017$) | B12: =B6*$B$30*BenefitPerTon_Regression!C5*('GDP Implicit Price Deflator'!BU8/'GDP Implicit Price Deflator'!BS8) -> 2614.514765 | C12: =B6*$B$30*BenefitPerTon_Regression!F5*('GDP Implicit Price Deflator'!BU8/'GDP Implicit Price Deflator'!BS8) -> 5970.280507 | E12: California | F12: =AVERT_2017!E38 -> 0.07786270886 | G12: =AVERT_2017!K25 -> 0.3448741623 | H12: =AVERT_2017!E25*0.0005 -> 0.5636909171 | I12: =AVERT_2017!K38 -> 0.04810972169
A13: NO2 (2017$) | B13: =B7*$B$30*BenefitPerTon_Regression!D5*('GDP Implicit Price Deflator'!BU8/'GDP Implicit Price Deflator'!BS8) -> 305.708483 | C13: =B7*$B$30*BenefitPerTon_Regression!G5*('GDP Implicit Price Deflator'!BU8/'GDP Implicit Price Deflator'!BS8) -> 704.8638727
A14: PM2.5 (2017$) | B14: =B9*$B$30*BenefitPerTon_Regression!B5*('GDP Implicit Price Deflator'!BU8/'GDP Implicit Price Deflator'!BS8) -> 1548.157805 | C14: =B9*$B$30*BenefitPerTon_Regression!E5*('GDP Implicit Price Deflator'!BU8/'GDP Implicit Price Deflator'!BS8) -> 3609.269777
A15: Total | B15: =SUM(B13+B14+B12) -> 4468.381054 | C15: =SUM(C12:C14) -> 10284.41416
A17: Avoided Carbon Benefits
A18: Social cost of carbon ($/metric ton) (global; 2017$) | B18: =SCC_Regression!B5*('GDP Implicit Price Deflator'!BU8/'GDP Implicit Price Deflator'!BK8) -> 44.85591817
A19: Social cost of carbon ($/metric ton) (domestic; 2017$) | B19: =SCC_Regression!C5*('GDP Implicit Price Deflator'!BU8/'GDP Implicit Price Deflator'!BT8) -> 6.390599626
A20: Annual benefits, global (2017$) | B20: =B8*B32*B18 -> 3477.063183
A21: Annual benefits, domestic (2017$) | B21: =B8*B32*B19 -> 495.375406
A23: Electricity Savings
A24: Location (state) | B24: Maryland
A25: Residential electricity rate (cents per kilowatthour; 2017$) | B25: =ElectricityPriceByState!R38 -> 13.96
A26: Residential electricity rate (dollars per megawatt hour; 2017$) | B26: =B25*(1/100)*1000 -> 139.6
A27: Total value of energy savings from green roofs (2017$/year) | B27: =B3*B26 -> 13960
A30: 1 lbs = 0.000500000000 tons | B30: 0.0005
A31: 1 ton = 907184.74 g | B31: 907184.74
A32: 1 US ton = 0.907185 metric tons | B32: 0.907185

Sheet EnergySavings by State
A1: State | B1: Energy Savings $/ha tree cover (2009$)
A2: Alabama | B2: 204.7932803
A3: Arkansas | B3: 263.2121346
A4: Arizona | B4: 692.1002569
A5: California | B5: 407.9973038
A6: Colorado | B6: 148.4335767
A7: Connecticut | B7: 402.2051479
A8: District of Columbia | B8: 1811.428225
A9: Delaware | B9: 1183.173973
A10: Florida | B10: 627.7515264
A11: Georgia | B11: 169.9578666
A12: Iowa | B12: 891.5544068
A13: Idaho | B13: 1293.935295
A14: Illinois | B14: 880.3003235
A15: Indiana | B15: 765.9168034
A16: Kansas | B16: 1392.61435
A17: Kentucky | B17: 863.5614111
A18: Louisiana | B18: 618.273073
A19: Massachusetts | B19: 433.3136127
A20: Maryland | B20: 845.3337057
A21: Maine | B21: 248.4854139
A22: Michigan | B22: 584.3390147
A23: Minnesota | B23: 314.5279175
A24: Missouri | B24: 841.976788
A25: Mississippi | B25: 299.9876799
A26: Montana | B26: 123.0138598
A27: North Carolina | B27: 240.4132036
A28: North Dakota | B28: 563.0370701
A29: Nebraska | B29: 1270.432435
A30: New Hampshire | B30: 155.606277
A31: New Jersey | B31: 626.526908
A32: New Mexico | B32: 556.747815
A33: Nevada | B33: 855.8575723
A34: New York | B34: 667.9290329
A35: Ohio | B35: 728.3189457
A36: Oklahoma | B36: 215.2415675
A37: Oregon | B37: 242.274401
A38: Pennsylvania | B38: 582.6556709
A39: Rhode Island | B39: 698.5315109
A40: South Carolina | B40: 249.531496
A41: South Dakota | B41: 591.6948307
A42: Tennessee | B42: 270.4241607
A43: Texas | B43: 508.220221
A44: Utah | B44: 549.9451682
A45: Virginia | B45: 366.0710147
A46: Vermont | B46: 409.2034319
A47: Washington | B47: 258.4565866
A48: Wisconsin | B48: 606.1254665
A49: West Virginia | B49: 258.9992096
A50: Wyoming | B50: 218.029549
A51: Conterminous US | B51: 455.3101728
A53: Source: Nowak et al. (2017); personal communication

Sheet AvoidedEmissions_UCTrees
A1: Avoided Emissions from Power Plants (Metric Tons) Nowak et al. (2017) | F1: Nowak et al. (2012) | H1: Avoided Emissions from Power Plants (Metric Tons/ha)
A2: State | B2: NOx | C2: SO2 | D2: PM2.5 | E2: CO2 | F2: UC tree cover (ha) | H2: State | I2: NOx | J2: SO2 | K2: PM2.5 | L2: CO2
A3: AL | B3: 593 | C3: 3164 | D3: 225 | E3: 833000 | F3: 701000 | H3: AL | I3: =B3/F3 -> 0.0008459343795 | J3: =C3/F3 -> 0.004513552068 | K3: =D3/F3 -> 0.0003209700428 | L3: =E3/F3 -> 1.188302425
A4: AR | B4: 614 | C4: 1244 | D4: 16 | E4: 549000 | F4: 259000 | H4: AR | I4: =B4/F4 -> 0.002370656371 | J4: =C4/F4 -> 0.004803088803 | K4: =D4/F4 -> 6.177606178e-05 | L4: =E4/F4 -> 2.11969112
A5: AZ | B5: 1356 | C5: 742 | D5: 70 | E5: 1237000 | F5: 277000 | H5: AZ | I5: 0.004895306859 | J5: 0.002678700361 | K5: 0.0002527075812 | L5: 4.465703971
A6: CA | B6: 262 | C6: 184 | D6: 390 | E6: 728000 | F6: 870000 | H6: CA | I6: 0.0003011494253 | J6: 0.0002114942529 | K6: 0.0004482758621 | L6: 0.8367816092
A7: CO | B7: 249 | C7: 187 | D7: 3 | E7: 171000 | F7: 130000 | H7: CO | I7: 0.001915384615 | J7: 0.001438461538 | K7: 2.307692308e-05 | L7: 1.315384615
A8: CT | B8: 201 | C8: 207 | D8: 56 | E8: 318000 | F8: 337000 | H8: CT | I8: 0.0005964391691 | J8: 0.0006142433234 | K8: 0.0001661721068 | L8: 0.943620178
A9: DE | B9: 333 | C9: 1167 | D9: 39 | E9: 292000 | F9: 32000 | H9: DE | I9: 0.01040625 | J9: 0.03646875 | K9: 0.00121875 | L9: 9.125
A10: FL | B10: 2709 | C10: 5810 | D10: 769 | E10: 3157000 | F10: 813000 | H10: FL | I10: 0.003332103321 | J10: 0.007146371464 | K10: 0.0009458794588 | L10: 3.883148831
A11: GA | B11: 780 | C11: 3520 | D11: 322 | E11: 1052000 | F11: 781000 | H11: GA | I11: 0.0009987195903 | J11: 0.004507042254 | K11: 0.0004122919334 | L11: 1.346991037
A12: IA | B12: 1229 | C12: 2838 | D12: 5 | E12: 1231000 | F12: 100000 | H12: IA | I12: 0.01229 | J12: 0.02838 | K12: 5e-05 | L12: 12.31
A13: ID | B13: 101 | C13: 154 | D13: 11 | E13: 109000 | F13: 18000 | H13: ID | I13: 0.005611111111 | J13: 0.008555555556 | K13: 0.0006111111111 | L13: 6.055555556
A14: IL | B14: 1695 | C14: 5534 | D14: 14 | E14: 2387000 | F14: 317000 | H14: IL | I14: 0.005347003155 | J14: 0.01745741325 | K14: 4.416403785e-05 | L14: 7.529968454
A15: IN | B15: 1288 | C15: 4723 | D15: 38 | E15: 1339000 | F15: 178000 | H15: IN | I15: 0.007235955056 | J15: 0.02653370787 | K15: 0.0002134831461 | L15: 7.52247191
A16: KS | B16: 1512 | C16: 1584 | D16: 10 | E16: 1200000 | F16: 95000 | H16: KS | I16: 0.01591578947 | J16: 0.01667368421 | K16: 0.0001052631579 | L16: 12.63157895
A17: KY | B17: 939 | C17: 2997 | D17: 72 | E17: 1101000 | F17: 117000 | H17: KY | I17: 0.008025641026 | J17: 0.02561538462 | K17: 0.0006153846154 | L17: 9.41025641
A18: LA | B18: 1208 | C18: 1894 | D18: 227 | E18: 1128000 | F18: 265000 | H18: LA | I18: 0.004558490566 | J18: 0.007147169811 | K18: 0.0008566037736 | L18: 4.256603774
A19: MA | B19: 733 | C19: 1881 | D19: 110 | E19: 1017000 | F19: 534000 | H19: MA | I19: 0.001372659176 | J19: 0.00352247191 | K19: 0.0002059925094 | L19: 1.904494382
A20: MD | B20: 843 | C20: 8737 | D20: 157 | E20: 1155000 | F20: 203000 | H20: MD | I20: 0.00415270936 | J20: 0.04303940887 | K20: =D20/F20 -> 0.0007733990148 | L20: =E20/F20 -> 5.689655172
A21: ME | B21: 108 | C21: 119 | D21: 85 | E21: 94000 | F21: 176000 | H21: ME | I21: 0.0006136363636 | J21: 0.0006761363636 | K21: 0.0004829545455 | L21: 0.5340909091
A22: MI | B22: 1969 | C22: 6456 | D22: 49 | E22: 1754000 | F22: 376000 | H22: MI | I22: 0.005236702128 | J22: 0.01717021277 | K22: 0.0001303191489 | L22: 4.664893617
A23: MN | B23: 1300 | C23: 1632 | D23: 33 | E23: 1077000 | F23: 361000 | H23: MN | I23: 0.003601108033 | J23: 0.004520775623 | K23: 9.141274238e-05 | L23: 2.983379501
A24: MO | B24: 1382 | C24: 6137 | D24: 28 | E24: 1939000 | F24: 263000 | H24: MO | I24: 0.005254752852 | J24: 0.02333460076 | K24: 0.0001064638783 | L24: 7.372623574
A25: MS | B25: 556 | C25: 858 | D25: 127 | E25: 540000 | F25: 268000 | H25: MS | I25: 0.002074626866 | J25: 0.003201492537 | K25: 0.000473880597 | L25: 2.014925373
A26: MT | B26: 487 | C26: 772 | D26: 23 | E26: 429000 | F26: 279000 | H26: MT | I26: 0.001745519713 | J26: 0.00276702509 | K26: 8.243727599e-05 | L26: 1.537634409
A27: NC | B27: 755 | C27: 2046 | D27: 284 | E27: 1201000 | F27: 663000 | H27: NC | I27: 0.001138763198 | J27: 0.003085972851 | K27: 0.0004283559578 | L27: 1.811463047
A28: ND | B28: 227 | C28: 472 | D28: 4 | E28: 127000 | F28: 21000 | H28: ND | I28: 0.01080952381 | J28: 0.02247619048 | K28: 0.0001904761905 | L28: 6.047619048
A29: NE | B29: 663 | C29: 1074 | D29: 1 | E29: 391000 | F29: 29000 | H29: NE | I29: 0.02286206897 | J29: 0.03703448276 | K29: 3.448275862e-05 | L29: 13.48275862
A30: NH | B30: 59 | C30: 425 | D30: 7 | E30: 74000 | F30: 158000 | H30: NH | I30: 0.0003734177215 | J30: 0.002689873418 | K30: 4.430379747e-05 | L30: 0.4683544304
A31: NJ | B31: 551 | C31: 813 | D31: 148 | E31: 939000 | F31: 452000 | H31: NJ | I31: 0.001219026549 | J31: 0.001798672566 | K31: 0.0003274336283 | L31: 2.077433628
A32: NM | B32: 814 | C32: 235 | D32: 3 | E32: 440000 | F32: 63000 | H32: NM | I32: 0.01292063492 | J32: 0.00373015873 | K32: 4.761904762e-05 | L32: 6.984126984
A33: NV | B33: 254 | C33: 132 | D33: 10 | E33: 327000 | F33: 75000 | H33: NV | I33: 0.003386666667 | J33: 0.00176 | K33: 0.0001333333333 | L33: 4.36
A34: NY | B34: 862 | C34: 1540 | D34: 69 | E34: 1190000 | F34: 561000 | H34: NY | I34: 0.001536541889 | J34: 0.002745098039 | K34: 0.0001229946524 | L34: 2.121212121
A35: OH | B35: 2050 | C35: 12579 | D35: 146 | E35: 2459000 | F35: 419000 | H35: OH | I35: 0.004892601432 | J35: 0.03002147971 | K35: 0.0003484486874 | L35: 5.868735084
A36: OK | B36: 888 | C36: 1132 | D36: 29 | E36: 637000 | F36: 378000 | H36: OK | I36: 0.002349206349 | J36: 0.002994708995 | K36: 7.671957672e-05 | L36: 1.685185185
A37: OR | B37: 105 | C37: 138 | D37: 17 | E37: 122000 | F37: 141000 | H37: OR | I37: 0.0007446808511 | J37: 0.0009787234043 | K37: 0.0001205673759 | L37: 0.865248227
A38: PA | B38: 2005 | C38: 10488 | D38: 128 | E38: 2067000 | F38: 590000 | H38: PA | I38: 0.003398305085 | J38: 0.01777627119 | K38: 0.0002169491525 | L38: 3.503389831
A39: RI | B39: 25 | C39: 1 | D39: 2 | E39: 130000 | F39: 54000 | H39: RI | I39: 0.000462962963 | J39: 1.851851852e-05 | K39: 3.703703704e-05 | L39: 2.407407407
A40: SC | B40: 313 | C40: 1316 | D40: 101 | E40: 514000 | F40: 352000 | H40: SC | I40: 0.0008892045455 | J40: 0.003738636364 | K40: 0.0002869318182 | L40: 1.460227273
A41: SD | B41: 503 | C41: 486 | D41: 2 | E41: 149000 | F41: 24000 | H41: SD | I41: 0.02095833333 | J41: 0.02025 | K41: 8.333333333e-05 | L41: 6.208333333
A42: TN | B42: 738 | C42: 2755 | D42: 145 | E42: 1072000 | F42: 497000 | H42: TN | I42: 0.001484909457 | J42: 0.005543259557 | K42: 0.000291750503 | L42: 2.15694165
A43: TX | B43: 2215 | C43: 6172 | D43: 213 | E43: 3352000 | F43: 105800 | H43: TX | I43: 0.02093572779 | J43: 0.05833648393 | K43: 0.002013232514 | L43: 31.68241966
A44: UT | B44: 895 | C44: 349 | D44: 20 | E44: 564000 | F44: 98000 | H44: UT | I44: 0.009132653061 | J44: 0.00356122449 | K44: 0.0002040816327 | L44: 5.755102041
A45: VA | B45: 908 | C45: 2760 | D45: 215 | E45: 979000 | F45: 401000 | H45: VA | I45: 0.002264339152 | J45: 0.006882793017 | K45: 0.000536159601 | L45: 2.441396509
A46: VT | B46: 47 | C46: 4.7 | D46: 6 | E46: 1010 | F46: 36000 | H46: VT | I46: 0.001305555556 | J46: 0.0001305555556 | K46: 0.0001666666667 | L46: 0.02805555556
A47: WA | B47: 265 | C47: 96 | D47: 19 | E47: 301000 | F47: 310000 | H47: WA | I47: 0.0008548387097 | J47: 0.0003096774194 | K47: 6.129032258e-05 | L47: 0.9709677419
A48: WI | B48: 1104 | C48: 3415 | D48: 20 | E48: 1383000 | F48: 250000 | H48: WI | I48: 0.004416 | J48: 0.01366 | K48: 8e-05 | L48: 5.532
A49: WV | B49: 204 | C49: 971 | D49: 47 | E49: 388000 | F49: 156000 | H49: WV | I49: 0.001307692308 | J49: 0.006224358974 | K49: 0.0003012820513 | L49: 2.487179487
A50: WY | B50: 175 | C50: 196 | D50: 14 | E50: 123000 | F50: 96000 | H50: WY | I50: =B50/F50 -> 0.001822916667 | J50: 0.002041666667 | K50: =D50/F50 -> 0.0001458333333 | L50: =E50/F50 -> 1.28125

Sheet ElectricityPriceByState
A1: Average retail price of electricity (cents per kilowatthour)
A2: https://www.eia.gov/electricity/data/browser/#/topic/7?agg=1,0&geo=vvvvvvvvvvvvo&endsec=8&freq=A&start=2001&end=2018&ctype=linechart&ltype=pin&rtype=s&maptype=0&rse=0&pin=
A3: Source: U.S. Energy Information Administration
A5: State/Region | B5: Average retail price of residential electricity (cents per kilowatthour)
B6: 2001 | C6: 2002 | D6: 2003 | E6: 2004 | F6: 2005 | G6: 2006 | H6: 2007 | I6: 2008 | J6: 2009 | K6: 2010 | L6: 2011 | M6: 2012 | N6: 2013 | O6: 2014 | P6: 2015 | Q6: 2016 | R6: 2017 | S6: 2018
A7: United States | B7: 8.58 | C7: 8.44 | D7: 8.72 | E7: 8.95 | F7: 9.45 | G7: 10.4 | H7: 10.65 | I7: 11.26 | J7: 11.51 | K7: 11.54 | L7: 11.72 | M7: 11.88 | N7: 12.13 | O7: 12.52 | P7: 12.65 | Q7: 12.55 | R7: 12.89 | S7: 12.87
A8: New England | B8: 12.08 | C8: 11.23 | D8: 11.68 | E8: 11.91 | F8: 13.44 | G8: 15.98 | H8: 16.7 | I8: 17.65 | J8: 17.48 | K8: 16.23 | L8: 15.89 | M8: 15.71 | N8: 16.22 | O8: 17.82 | P8: 19.43 | Q8: 18.81 | R8: 19.41 | S8: 20.6
A9: Connecticut | B9: 10.9 | C9: 10.96 | D9: 11.31 | E9: 11.63 | F9: 13.64 | G9: 16.86 | H9: 19.11 | I9: 19.54 | J9: 20.33 | K9: 19.25 | L9: 18.11 | M9: 17.34 | N9: 17.55 | O9: 19.75 | P9: 20.94 | Q9: 20.01 | R9: 20.29 | S9: 21.2
A10: Maine | B10: 13.13 | C10: 12.74 | D10: 12.37 | E10: 12.16 | F10: 13.23 | G10: 13.8 | H10: 16.52 | I10: 16.24 | J10: 15.64 | K10: 15.72 | L10: 15.38 | M10: 14.66 | N10: 14.35 | O10: 15.27 | P10: 15.61 | Q10: 15.83 | R10: 15.97 | S10: 16.84
A11: Massachusetts | B11: 12.47 | C11: 10.93 | D11: 11.6 | E11: 11.75 | F11: 13.44 | G11: 16.6 | H11: 16.23 | I11: 17.56 | J11: 16.87 | K11: 14.59 | L11: 14.67 | M11: 14.91 | N11: 15.83 | O11: 17.39 | P11: 19.83 | Q11: 19 | R11: 20.06 | S11: 21.61
A12: New Hampshire | B12: 12.49 | C12: 11.89 | D12: 11.98 | E12: 12.49 | F12: 13.51 | G12: 14.68 | H12: 14.88 | I12: 15.68 | J12: 16.39 | K12: 16.32 | L12: 16.52 | M12: 16.07 | N12: 16.33 | O12: 17.53 | P12: 18.5 | Q12: 18.38 | R12: 19.2 | S12: 19.69
A13: Rhode Island | B13: 12.13 | C13: 10.2 | D13: 11.61 | E13: 12.19 | F13: 13.04 | G13: 15.12 | H13: 14.05 | I13: 17.45 | J13: 15.6 | K13: 15.92 | L13: 14.33 | M13: 14.4 | N13: 15.2 | O13: 17.17 | P13: 19.29 | Q13: 18.62 | R13: 18.32 | S13: 20.55
A14: Vermont | B14: 12.67 | C14: 12.78 | D14: 12.82 | E14: 12.94 | F14: 12.96 | G14: 13.39 | H14: 14.15 | I14: 14.48 | J14: 14.9 | K14: 15.57 | L14: 16.26 | M14: 17.01 | N14: 17.14 | O14: 17.47 | P14: 17.09 | Q14: 17.37 | R14: 17.68 | S14: 18.02
A15: Middle Atlantic | B15: 11.46 | C15: 11.33 | D15: 11.62 | E15: 11.81 | F15: 12.49 | G15: 13.36 | H15: 13.95 | I15: 14.88 | J15: 14.84 | K15: 15.81 | L15: 15.8 | M15: 15.27 | N15: 15.7 | O15: 16.39 | P15: 15.97 | Q15: 15.68 | R15: 15.99 | S15: 15.97
A16: New Jersey | B16: 10.21 | C16: 10.38 | D16: 10.67 | E16: 11.23 | F16: 11.74 | G16: 12.84 | H16: 14.14 | I16: 15.66 | J16: 16.31 | K16: 16.57 | L16: 16.23 | M16: 15.78 | N16: 15.73 | O16: 15.78 | P16: 15.81 | Q16: 15.72 | R16: 15.65 | S16: 15.41
A17: New York | B17: 14.04 | C17: 13.55 | D17: 14.31 | E17: 14.54 | F17: 15.72 | G17: 16.89 | H17: 17.1 | I17: 18.31 | J17: 17.5 | K17: 18.74 | L17: 18.26 | M17: 17.62 | N17: 18.79 | O17: 20.07 | P17: 18.54 | Q17: 17.58 | R17: 18.03 | S17: 18.52
A18: Pennsylvania | B18: 9.68 | C18: 9.74 | D18: 9.59 | E18: 9.58 | F18: 9.86 | G18: 10.35 | H18: 10.95 | I18: 11.35 | J18: 11.65 | K18: 12.7 | L18: 13.26 | M18: 12.75 | N18: 12.79 | O18: 13.32 | P18: 13.64 | Q18: 13.86 | R18: 14.23 | S18: 13.89
A19: East North Central | B19: 8.13 | C19: 8.05 | D19: 8.15 | E19: 8.28 | F19: 8.41 | G19: 9.14 | H19: 9.74 | I19: 10.39 | J19: 10.92 | K19: 11.41 | L19: 11.79 | M19: 12.05 | N19: 12.14 | O19: 12.65 | P19: 12.96 | Q19: 13.06 | R19: 13.36 | S19: 13.25
A20: Illinois | B20: 8.71 | C20: 8.39 | D20: 8.38 | E20: 8.37 | F20: 8.34 | G20: 8.42 | H20: 10.12 | I20: 11.07 | J20: 11.27 | K20: 11.52 | L20: 11.78 | M20: 11.37 | N20: 10.63 | O20: 11.91 | P20: 12.5 | Q20: 12.54 | R20: 12.95 | S20: 12.77
A21: Indiana | B21: 6.92 | C21: 6.91 | D21: 7.04 | E21: 7.3 | F21: 7.5 | G21: 8.22 | H21: 8.26 | I21: 8.87 | J21: 9.5 | K21: 9.56 | L21: 10.06 | M21: 10.53 | N21: 10.99 | O21: 11.46 | P21: 11.57 | Q21: 11.79 | R21: 12.29 | S21: 12.26
A22: Michigan | B22: 8.26 | C22: 8.28 | D22: 8.35 | E22: 8.33 | F22: 8.4 | G22: 9.77 | H22: 10.21 | I22: 10.75 | J22: 11.6 | K22: 12.46 | L22: 13.27 | M22: 14.13 | N22: 14.59 | O22: 14.46 | P22: 14.42 | Q22: 15.22 | R22: 15.4 | S22: 15.45
A23: Ohio | B23: 8.37 | C23: 8.24 | D23: 8.26 | E23: 8.45 | F23: 8.51 | G23: 9.34 | H23: 9.57 | I23: 10.06 | J23: 10.67 | K23: 11.31 | L23: 11.42 | M23: 11.76 | N23: 12.01 | O23: 12.5 | P23: 12.8 | Q23: 12.47 | R23: 12.63 | S23: 12.56
A24: Wisconsin | B24: 7.9 | C24: 8.18 | D24: 8.67 | E24: 9.07 | F24: 9.66 | G24: 10.51 | H24: 10.87 | I24: 11.51 | J24: 11.94 | K24: 12.65 | L24: 13.02 | M24: 13.19 | N24: 13.55 | O24: 13.67 | P24: 14.11 | Q24: 14.07 | R24: 14.35 | S24: 14.02
A25: West North Central | B25: 7.37 | C25: 7.37 | D25: 7.42 | E25: 7.57 | F25: 7.78 | G25: 8.12 | H25: 8.31 | I25: 8.67 | J25: 9.14 | K25: 9.64 | L25: 10.12 | M25: 10.59 | N25: 10.94 | O25: 11.09 | P25: 11.47 | Q25: 11.79 | R25: 12.13 | S25: 12
A26: Iowa | B26: 8.41 | C26: 8.35 | D26: 8.57 | E26: 8.96 | F26: 9.27 | G26: 9.63 | H26: 9.45 | I26: 9.49 | J26: 9.99 | K26: 10.42 | L26: 10.46 | M26: 10.82 | N26: 11.04 | O26: 11.16 | P26: 11.63 | Q26: 11.94 | R26: 12.34 | S26: 12.24
A27: Kansas | B27: 7.66 | C27: 7.67 | D27: 7.71 | E27: 7.74 | F27: 7.9 | G27: 8.25 | H27: 8.19 | I27: 8.89 | J27: 9.53 | K27: 10.03 | L27: 10.65 | M27: 11.24 | N27: 11.64 | O27: 12.17 | P27: 12.34 | Q27: 13.06 | R27: 13.31 | S27: 13.35
A28: Minnesota | B28: 7.61 | C28: 7.49 | D28: 7.65 | E28: 7.92 | F28: 8.28 | G28: 8.7 | H28: 9.18 | I28: 9.74 | J28: 10.04 | K28: 10.59 | L28: 10.96 | M28: 11.35 | N28: 11.81 | O28: 12.01 | P28: 12.12 | Q28: 12.67 | R28: 13.04 | S28: 13.14
A29: Missouri | B29: 7 | C29: 7.06 | D29: 6.96 | E29: 6.97 | F29: 7.08 | G29: 7.44 | H29: 7.69 | I29: 8 | J29: 8.54 | K29: 9.08 | L29: 9.75 | M29: 10.17 | N29: 10.6 | O29: 10.64 | P29: 11.21 | Q29: 11.21 | R29: 11.63 | S29: 11.34
A30: Nebraska | B30: 6.5 | C30: 6.73 | D30: 6.87 | E30: 6.96 | F30: 7.14 | G30: 7.41 | H30: 7.59 | I30: 7.87 | J30: 8.52 | K30: 8.94 | L30: 9.32 | M30: 10.04 | N30: 10.31 | O30: 10.4 | P30: 10.6 | Q30: 10.84 | R30: 10.97 | S30: 10.7
A31: North Dakota | B31: 6.47 | C31: 6.39 | D31: 6.49 | E31: 6.79 | F31: 6.99 | G31: 7.14 | H31: 7.3 | I31: 7.51 | J31: 7.58 | K31: 8.13 | L31: 8.58 | M31: 9.06 | N31: 9.12 | O31: 9.15 | P31: 9.62 | Q31: 10.16 | R31: 10.29 | S31: 10.25
A32: South Dakota | B32: 7.42 | C32: 7.4 | D32: 7.47 | E32: 7.65 | F32: 7.77 | G32: 7.83 | H32: 8.07 | I32: 8.27 | J32: 8.49 | K32: 8.97 | L32: 9.35 | M32: 10.07 | N32: 10.26 | O32: 10.47 | P32: 11.08 | Q32: 11.47 | R32: 11.77 | S32: 11.59
A33: South Atlantic | B33: 8.05 | C33: 7.91 | D33: 8.1 | E33: 8.33 | F33: 8.83 | G33: 9.76 | H33: 10.03 | I33: 10.67 | J33: 11.32 | K33: 10.96 | L33: 11.19 | M33: 11.38 | N33: 11.39 | O33: 11.74 | P33: 11.74 | Q33: 11.56 | R33: 11.86 | S33: 11.7
A34: Delaware | B34: 8.61 | C34: 8.7 | D34: 8.59 | E34: 8.78 | F34: 9.01 | G34: 11.85 | H34: 13.16 | I34: 13.93 | J34: 14.07 | K34: 13.8 | L34: 13.7 | M34: 13.58 | N34: 12.95 | O34: 13.29 | P34: 13.42 | Q34: 13.42 | R34: 13.35 | S34: 12.53
A35: District Of Columbia | B35: 7.79 | C35: 7.98 | D35: 7.84 | E35: 8 | F35: 9.1 | G35: 9.88 | H35: 11.18 | I35: 12.78 | J35: 13.73 | K35: 14.01 | L35: 13.4 | M35: 12.28 | N35: 12.57 | O35: 12.74 | P35: 12.99 | Q35: 12.29 | R35: 12.94 | S35: 12.84
A36: Florida | B36: 8.59 | C36: 8.16 | D36: 8.55 | E36: 8.99 | F36: 9.62 | G36: 11.33 | H36: 11.22 | I36: 11.65 | J36: 12.39 | K36: 11.44 | L36: 11.51 | M36: 11.42 | N36: 11.27 | O36: 11.89 | P36: 11.58 | Q36: 10.98 | R36: 11.61 | S36: 11.54
A37: Georgia | B37: 7.72 | C37: 7.63 | D37: 7.7 | E37: 7.86 | F37: 8.64 | G37: 8.91 | H37: 9.1 | I37: 9.93 | J37: 10.13 | K37: 10.07 | L37: 11.05 | M37: 11.17 | N37: 11.46 | O37: 11.65 | P37: 11.54 | Q37: 11.5 | R37: 11.9 | S37: 11.47
A38: Maryland | B38: 7.67 | C38: 7.74 | D38: 7.73 | E38: 7.8 | F38: 8.46 | G38: 9.71 | H38: 11.89 | I38: 13.84 | J38: 14.98 | K38: 14.32 | L38: 13.31 | M38: 12.84 | N38: 13.25 | O38: 13.63 | P38: 13.82 | Q38: 14.23 | R38: 13.96 | S38: 13.3
A39: North Carolina | B39: 8.12 | C39: 8.19 | D39: 8.32 | E39: 8.45 | F39: 8.65 | G39: 9.12 | H39: 9.4 | I39: 9.52 | J39: 9.99 | K39: 10.12 | L39: 10.26 | M39: 10.91 | N39: 10.97 | O39: 11.1 | P39: 11.28 | Q39: 11.03 | R39: 10.94 | S39: 11.09
A40: South Carolina | B40: 7.69 | C40: 7.72 | D40: 8.01 | E40: 8.12 | F40: 8.67 | G40: 9.03 | H40: 9.19 | I40: 9.89 | J40: 10.44 | K40: 10.5 | L40: 11.05 | M40: 11.77 | N40: 11.99 | O40: 12.45 | P40: 12.57 | Q40: 12.65 | R40: 13.02 | S40: 12.44
A41: Virginia | B41: 7.79 | C41: 7.79 | D41: 7.76 | E41: 7.99 | F41: 8.16 | G41: 8.49 | H41: 8.74 | I41: 9.62 | J41: 10.61 | K41: 10.45 | L41: 10.64 | M41: 11.08 | N41: 10.84 | O41: 11.1 | P41: 11.37 | Q41: 11.36 | R41: 11.55 | S41: 11.73
A42: West Virginia | B42: 6.26 | C42: 6.23 | D42: 6.24 | E42: 6.23 | F42: 6.21 | G42: 6.35 | H42: 6.73 | I42: 7.06 | J42: 7.9 | K42: 8.79 | L42: 9.39 | M42: 9.85 | N42: 9.52 | O42: 9.34 | P42: 10.08 | Q42: 11.44 | R42: 11.63 | S42: 11.18
A43: East South Central | B43: 6.51 | C43: 6.57 | D43: 6.78 | E43: 7.12 | F43: 7.42 | G43: 8.16 | H43: 8.35 | I43: 9.32 | J43: 9.61 | K43: 9.58 | L43: 10.14 | M43: 10.32 | N43: 10.4 | O43: 10.76 | P43: 10.82 | Q43: 10.86 | R43: 11.3 | S43: 11.14
A44: Alabama | B44: 7.01 | C44: 7.12 | D44: 7.39 | E44: 7.62 | F44: 8 | G44: 8.75 | H44: 9.32 | I44: 10.4 | J44: 10.66 | K44: 10.67 | L44: 11.09 | M44: 11.4 | N44: 11.26 | O44: 11.48 | P44: 11.7 | Q44: 11.99 | R44: 12.55 | S44: 12.18
A45: Kentucky | B45: 5.58 | C45: 5.65 | D45: 5.81 | E45: 6.11 | F45: 6.57 | G45: 7.02 | H45: 7.34 | I45: 7.94 | J45: 8.37 | K45: 8.57 | L45: 9.2 | M45: 9.43 | N45: 9.79 | O45: 10.16 | P45: 10.24 | Q45: 10.49 | R45: 10.85 | S45: 10.6
A46: Mississippi | B46: 7.37 | C46: 7.28 | D46: 7.6 | E46: 8.21 | F46: 8.71 | G46: 9.66 | H46: 9.36 | I46: 10.39 | J46: 10.22 | K46: 9.87 | L46: 10.17 | M46: 10.26 | N46: 10.78 | O46: 11.32 | P46: 11.27 | Q46: 10.47 | R46: 11.08 | S46: 11.12
A47: Tennessee | B47: 6.32 | C47: 6.41 | D47: 6.55 | E47: 6.9 | F47: 6.98 | G47: 7.75 | H47: 7.84 | I47: 8.91 | J47: 9.32 | K47: 9.23 | L47: 9.98 | M47: 10.1 | N47: 9.98 | O47: 10.32 | P47: 10.3 | Q47: 10.41 | R47: 10.72 | S47: 10.71
A48: West South Central | B48: 8.45 | C48: 7.7 | D48: 8.61 | E48: 9.05 | F48: 10.04 | G48: 11.48 | H48: 11.15 | I48: 11.86 | J48: 11.04 | K48: 10.67 | L48: 10.42 | M48: 10.3 | N48: 10.74 | O48: 11.12 | P48: 10.95 | Q48: 10.59 | R48: 10.74 | S48: 10.77
A49: Arkansas | B49: 7.72 | C49: 7.25 | D49: 7.24 | E49: 7.36 | F49: 8 | G49: 8.85 | H49: 8.73 | I49: 9.27 | J49: 9.14 | K49: 8.86 | L49: 9.02 | M49: 9.3 | N49: 9.59 | O49: 9.51 | P49: 9.82 | Q49: 9.92 | R49: 10.28 | S49: 9.81
A50: Louisiana | B50: 7.92 | C50: 7.1 | D50: 7.84 | E50: 8.05 | F50: 8.87 | G50: 9.14 | H50: 9.37 | I50: 10.28 | J50: 8.1 | K50: 8.98 | L50: 8.96 | M50: 8.37 | N50: 9.43 | O50: 9.57 | P50: 9.33 | Q50: 9.34 | R50: 9.74 | S50: 9.59
A51: Oklahoma | B51: 7.27 | C51: 6.73 | D51: 7.47 | E51: 7.72 | F51: 7.95 | G51: 8.55 | H51: 8.58 | I51: 9.09 | J51: 8.49 | K51: 9.14 | L51: 9.47 | M51: 9.51 | N51: 9.67 | O51: 10.03 | P51: 10.14 | Q51: 10.2 | R51: 10.61 | S51: 10.3
A52: Texas | B52: 8.86 | C52: 8.05 | D52: 9.16 | E52: 9.73 | F52: 10.93 | G52: 12.86 | H52: 12.34 | I52: 13.03 | J52: 12.38 | K52: 11.6 | L52: 11.08 | M52: 10.98 | N52: 11.35 | O52: 11.86 | P52: 11.56 | Q52: 10.99 | R52: 11.01 | S52: 11.2
A53: Mountain | B53: 7.8 | C53: 7.87 | D53: 8.02 | E53: 8.24 | F53: 8.67 | G53: 8.98 | H53: 9.31 | I53: 9.84 | J53: 10.18 | K53: 10.49 | L53: 10.56 | M53: 10.94 | N53: 11.31 | O53: 11.67 | P53: 11.83 | Q53: 11.65 | R53: 11.89 | S53: 11.94
A54: Arizona | B54: 8.3 | C54: 8.27 | D54: 8.35 | E54: 8.46 | F54: 8.86 | G54: 9.4 | H54: 9.66 | I54: 10.27 | J54: 10.73 | K54: 10.97 | L54: 11.08 | M54: 11.29 | N54: 11.71 | O54: 11.9 | P54: 12.13 | Q54: 12.15 | R54: 12.44 | S54: 12.77
A55: Colorado | B55: 7.47 | C55: 7.37 | D55: 8.14 | E55: 8.42 | F55: 9.06 | G55: 9.02 | H55: 9.25 | I55: 10.13 | J55: 10 | K55: 11.04 | L55: 11.27 | M55: 11.46 | N55: 11.93 | O55: 12.18 | P55: 12.12 | Q55: 12.07 | R55: 12.17 | S55: 12.15
A56: Idaho | B56: 6.01 | C56: 6.59 | D56: 6.24 | E56: 6.1 | F56: 6.29 | G56: 6.21 | H56: 6.36 | I56: 6.99 | J56: 7.8 | K56: 7.99 | L56: 7.87 | M56: 8.67 | N56: 9.32 | O56: 9.72 | P56: 9.93 | Q56: 9.95 | R56: 10.04 | S56: 10.15
A57: Montana | B57: 6.88 | C57: 7.23 | D57: 7.56 | E57: 7.86 | F57: 8.1 | G57: 8.28 | H57: 8.77 | I57: 9.13 | J57: 8.94 | K57: 9.16 | L57: 9.75 | M57: 10.08 | N57: 10.33 | O57: 10.18 | P57: 10.88 | Q57: 10.94 | R57: 10.95 | S57: 10.96
A58: Nevada | B58: 9.08 | C58: 9.43 | D58: 9.02 | E58: 9.69 | F58: 10.2 | G58: 11.08 | H58: 11.82 | I58: 11.93 | J58: 12.86 | K58: 12.36 | L58: 11.61 | M58: 11.83 | N58: 11.89 | O58: 12.93 | P58: 12.76 | Q58: 11.41 | R58: 11.99 | S58: 11.85
A59: New Mexico | B59: 8.74 | C59: 8.5 | D59: 8.69 | E59: 8.67 | F59: 9.13 | G59: 9.06 | H59: 9.12 | I59: 10.01 | J59: 10.02 | K59: 10.52 | L59: 11 | M59: 11.37 | N59: 11.68 | O59: 12.28 | P59: 12.47 | Q59: 12.03 | R59: 12.88 | S59: 12.68
A60: Utah | B60: 6.72 | C60: 6.79 | D60: 6.9 | E60: 7.21 | F60: 7.52 | G60: 7.59 | H60: 8.15 | I60: 8.26 | J60: 8.48 | K60: 8.71 | L60: 8.96 | M60: 9.93 | N60: 10.37 | O60: 10.65 | P60: 10.88 | Q60: 11.02 | R60: 10.95 | S60: 10.41
A61: Wyoming | B61: 6.77 | C61: 6.97 | D61: 7.04 | E61: 7.21 | F61: 7.48 | G61: 7.75 | H61: 7.75 | I61: 8.21 | J61: 8.58 | K61: 8.77 | L61: 9.11 | M61: 9.85 | N61: 10.16 | O61: 10.5 | P61: 10.97 | Q61: 11.13 | R61: 11.37 | S61: 11.29
A62: Pacific Contiguous | B62: 9.68 | C62: 10.27 | D62: 10.11 | E62: 10.11 | F62: 10.36 | G62: 11.62 | H62: 11.82 | I62: 11.55 | J62: 12.15 | K62: 12.31 | L62: 12.43 | M62: 12.94 | N62: 13.51 | O62: 13.64 | P62: 14.28 | Q62: 14.59 | R62: 15.08 | S62: 15.56
A63: California | B63: 12.09 | C63: 12.64 | D63: 12.23 | E63: 12.2 | F63: 12.51 | G63: 14.33 | H63: 14.42 | I63: 13.81 | J63: 14.74 | K63: 14.75 | L63: 14.78 | M63: 15.34 | N63: 16.23 | O63: 16.25 | P63: 16.99 | Q63: 17.39 | R63: 18.31 | S63: 18.84
A64: Oregon | B64: 6.29 | C64: 7.12 | D64: 7.06 | E64: 7.18 | F64: 7.25 | G64: 7.48 | H64: 8.19 | I64: 8.49 | J64: 8.68 | K64: 8.87 | L64: 9.54 | M64: 9.8 | N64: 9.9 | O64: 10.47 | P64: 10.66 | Q64: 10.66 | R64: 10.66 | S64: 10.98
A65: Washington | B65: 5.7 | C65: 6.29 | D65: 6.31 | E65: 6.37 | F65: 6.54 | G65: 6.82 | H65: 7.26 | I65: 7.54 | J65: 7.67 | K65: 8.04 | L65: 8.28 | M65: 8.53 | N65: 8.7 | O65: 8.67 | P65: 9.09 | Q65: 9.48 | R65: 9.66 | S65: 9.75
A66: Pacific Noncontiguous | B66: 14.64 | C66: 14.2 | D66: 14.85 | E66: 15.84 | F66: 17.78 | G66: 19.94 | H66: 20.56 | I66: 25.99 | J66: 21.31 | K66: 23.22 | L66: 27.49 | M66: 28.76 | N66: 28.56 | O66: 29.13 | P66: 25.34 | Q66: 24.36 | R66: 25.89 | S66: 28.03
A67: Alaska | B67: 12.12 | C67: 12.05 | D67: 11.98 | E67: 12.44 | F67: 13.3 | G67: 14.83 | H67: 15.18 | I67: 16.56 | J67: 17.14 | K67: 16.26 | L67: 17.62 | M67: 17.88 | N67: 18.12 | O67: 19.14 | P67: 19.83 | Q67: 20.3 | R67: 21.27 | S67: 21.94
A68: Hawaii | B68: 16.34 | C68: 15.63 | D68: 16.73 | E68: 18.06 | F68: 20.7 | G68: 23.35 | H68: 24.12 | I68: 32.5 | J68: 24.2 | K68: 28.1 | L68: 34.68 | M68: 37.34 | N68: 36.98 | O68: 37.04 | P68: 29.6 | Q68: 27.47 | R68: 29.5 | S68: 32.47

Sheet BenefitPerTon_Regression
A1: Based on "Electricity generating units" Sector (3% discount rate); 2015$
A2: Year | B2: Low | E2: High
B3: PM2.5 | C3: SO2 | D3: NOx | E3: PM2.5 | F3: SO2 | G3: NOx
A4: 2016 | B4: 140000 | C4: 40000 | D4: 6000 | E4: 330000 | F4: 92000 | G4: 14000
A5: 2017 | B5: 142866.8172 | C5: 40446.9526 | D5: 6020.090293 | E5: 333069.9774 | F5: 92361.17381 | G5: 13880.36117
A6: 2018 | B6: 145846.5011 | C6: 41108.35214 | D6: 6107.900677 | E6: 338623.0248 | F6: 93602.7088 | G6: 14031.60271
A7: 2019 | B7: 148826.1851 | C7: 41769.75169 | D7: 6195.711061 | E7: 344176.0722 | F7: 94844.24379 | G7: 14182.84424
A8: 2020 | B8: 150000 | C8: 42000 | D8: 6200 | E8: 350000 | F8: 96000 | G8: 14000
A9: 2021 | B9: 154785.553 | C9: 43092.55079 | D9: 6371.331828 | E9: 355282.167 | F9: 97327.31377 | G9: 14485.32731
A10: 2022 | B10: 157765.237 | C10: 43753.95034 | D10: 6459.142212 | E10: 360835.2144 | F10: 98568.84876 | G10: 14636.56885
A11: 2023 | B11: 160744.921 | C11: 44415.34989 | D11: 6546.952596 | E11: 366388.2619 | F11: 99810.38375 | G11: 14787.81038
A12: 2024 | B12: 163724.605 | C12: 45076.74944 | D12: 6634.76298 | E12: 371941.3093 | F12: 101051.9187 | G12: 14939.05192
A13: 2025 | B13: 170000 | C13: 46000 | D13: 6700 | E13: 370000 | F13: 100000 | G13: 15000
A14: 2026 | B14: 169683.9729 | C14: 46399.54853 | D14: 6810.383747 | E14: 383047.4041 | F14: 103534.9887 | G14: 15241.53499
A15: 2027 | B15: 172663.6569 | C15: 47060.94808 | D15: 6898.194131 | E15: 388600.4515 | F15: 104776.5237 | G15: 15392.77652
A16: 2028 | B16: 175643.3409 | C16: 47722.34763 | D16: 6986.004515 | E16: 394153.4989 | F16: 106018.0587 | G16: 15544.01806
A17: 2029 | B17: 178623.0248 | C17: 48383.74718 | D17: 7073.814898 | E17: 399706.5463 | F17: 107259.5937 | G17: 15695.25959
A18: 2030 | B18: 180000 | C18: 49000 | D18: 7200 | E18: 410000 | F18: 110000 | G18: 16000
A20: Source: https://www.epa.gov/sites/production/files/2018-02/documents/sourceapportionmentbpttsd_2018.pdf

Sheet SCC_Regression
A1: 3% average values
A2: Year | B2: Global (2007$) | C2: Domestic (2016$)
A3: 2015 | B3: 36 | C3: 6
A4: 2016 | B4: 37.50714286 | C4: 6.135714286
A5: 2017 | B5: 38.43095238 | C5: 6.271428571
A6: 2018 | B6: 39.3547619 | C6: 6.407142857
A7: 2019 | B7: 40.27857143 | C7: 6.542857143
A8: 2020 | B8: 42 | C8: 7
A9: 2021 | B9: 42.12619048 | C9: 6.814285714
A10: 2022 | B10: 43.05 | C10: 6.95
A11: 2023 | B11: 43.97380952 | C11: 7.085714286
A12: 2024 | B12: 44.89761905 | C12: 7.221428571
A13: 2025 | B13: 46 | C13: 7
A14: 2026 | B14: 46.7452381 | C14: 7.492857143
A15: 2027 | B15: 47.66904762 | C15: 7.628571429
A16: 2028 | B16: 48.59285714 | C16: 7.764285714
A17: 2029 | B17: 49.51666667 | C17: 7.9
A18: 2030 | B18: 50 | C18: 8
A19: 2031 | B19: 51.36428571 | C19: 8.171428571
A20: 2032 | B20: 52.28809524 | C20: 8.307142857
A21: 2033 | B21: 53.21190476 | C21: 8.442857143
A22: 2034 | B22: 54.13571429 | C22: 8.578571429
A23: 2035 | B23: 55 | C23: 9
A24: 2036 | B24: 55.98333333 | C24: 8.85
A25: 2037 | B25: 56.90714286 | C25: 8.985714286
A26: 2038 | B26: 57.83095238 | C26: 9.121428571
A27: 2039 | B27: 58.7547619 | C27: 9.257142857
A28: 2040 | B28: 60 | C28: 9
A29: 2041 | B29: 60.60238095 | C29: 9.528571429
A30: 2042 | B30: 61.52619048 | C30: 9.664285714
A31: 2043 | B31: 62.45 | C31: 9.8
A32: 2044 | B32: 63.37380952 | C32: 9.935714286
A33: 2045 | B33: 64 | C33: 10
A34: 2046 | B34: 65.22142857 | C34: 10.20714286
A35: 2047 | B35: 66.1452381 | C35: 10.34285714
A36: 2048 | B36: 67.06904762 | C36: 10.47857143
A37: 2049 | B37: 67.99285714 | C37: 10.61428571
A38: 2050 | B38: 69 | C38: 11
A40: Sources:
A41: Global: | B41: https://19january2017snapshot.epa.gov/sites/production/files/2016-12/documents/sc_co2_tsd_august_2016.pdf
A42: Domestic: | B42: https://www.epa.gov/sites/production/files/2019-06/documents/utilities_ria_final_cpp_repeal_and_ace_2019-06.pdf

Sheet GDP Implicit Price Deflator
A1: Table 1.1.9. Implicit Price Deflators for Gross Domestic Product
A2: [Index numbers, 2012=100]
A3: Bureau of Economic Analysis
A4: Last Revised on: July 27, 2018 - Next Release Date August 29, 2018
A6: Line | C6: 1947 | D6: 1948 | E6: 1949 | F6: 1950 | G6: 1951 | H6: 1952 | I6: 1953 | J6: 1954 | K6: 1955 | L6: 1956 | M6: 1957 | N6: 1958 | O6: 1959 | P6: 1960 | Q6: 1961 | R6: 1962 | S6: 1963 | T6: 1964 | U6: 1965 | V6: 1966 | W6: 1967 | X6: 1968 | Y6: 1969 | Z6: 1970 | AA6: 1971 | AB6: 1972 | AC6: 1973 | AD6: 1974 | AE6: 1975 | AF6: 1976 | AG6: 1977 | AH6: 1978 | AI6: 1979 | AJ6: 1980 | AK6: 1981 | AL6: 1982 | AM6: 1983 | AN6: 1984 | AO6: 1985 | AP6: 1986 | AQ6: 1987 | AR6: 1988 | AS6: 1989 | AT6: 1990 | AU6: 1991 | AV6: 1992 | AW6: 1993 | AX6: 1994 | AY6: 1995 | AZ6: 1996 | BA6: 1997 | BB6: 1998 | BC6: 1999 | BD6: 2000 | BE6: 2001 | BF6: 2002 | BG6: 2003 | BH6: 2004 | BI6: 2005 | BJ6: 2006 | BK6: 2007 | BL6: 2008 | BM6: 2009 | BN6: 2010 | BO6: 2011 | BP6: 2012 | BQ6: 2013 | BR6: 2014 | BS6: 2015 | BT6: 2016 | BU6: 2017
A7: Line
A8: 1 | B8: Gross domestic product | C8: 12.267 | D8: 12.956 | E8: 12.935 | F8: 13.095 | G8: 14.024 | H8: 14.266 | I8: 14.439 | J8: 14.573 | K8: 14.819 | L8: 15.324 | M8: 15.832 | N8: 16.192 | O8: 16.414 | P8: 16.638 | Q8: 16.815 | R8: 17.02 | S8: 17.215 | T8: 17.477 | U8: 17.798 | V8: 18.296 | W8: 18.827 | X8: 19.628 | Y8: 20.591 | Z8: 21.677 | AA8: 22.776 | AB8: 23.761 | AC8: 25.063 | AD8: 27.318 | AE8: 29.849 | AF8: 31.491 | AG8: 33.448 | AH8: 35.801 | AI8: 38.771 | AJ8: 42.273 | AK8: 46.273 | AL8: 49.132 | AM8: 51.056 | AN8: 52.898 | AO8: 54.571 | AP8: 55.67 | AQ8: 57.046 | AR8: 59.059 | AS8: 61.374 | AT8: 63.671 | AU8: 65.825 | AV8: 67.325 | AW8: 68.92 | AX8: 70.392 | AY8: 71.868 | AZ8: 73.183 | BA8: 74.445 | BB8: 75.283 | BC8: 76.37 | BD8: 78.078 | BE8: 79.79 | BF8: 81.052 | BG8: 82.557 | BH8: 84.78 | BI8: 87.421 | BJ8: 90.066 | BK8: 92.486 | BL8: 94.285 | BM8: 95.004 | BN8: 96.111 | BO8: 98.118 | BP8: 100 | BQ8: 101.755 | BR8: 103.68 | BS8: 104.789 | BT8: 105.935 | BU8: 107.948
A9: 2 | B9: Personal consumption expenditures | C9: 12.517 | D9: 13.225 | E9: 13.122 | F9: 13.278 | G9: 14.182 | H9: 14.473 | I9: 14.663 | J9: 14.787 | K9: 14.845 | L9: 15.14 | M9: 15.6 | N9: 15.969 | O9: 16.207 | P9: 16.473 | Q9: 16.644 | R9: 16.839 | S9: 17.04 | T9: 17.287 | U9: 17.536 | V9: 17.979 | W9: 18.431 | X9: 19.152 | Y9: 20.015 | Z9: 20.951 | AA9: 21.841 | AB9: 22.586 | AC9: 23.802 | AD9: 26.28 | AE9: 28.47 | AF9: 30.032 | AG9: 31.986 | AH9: 34.211 | AI9: 37.251 | AJ9: 41.262 | AK9: 44.958 | AL9: 47.456 | AM9: 49.474 | AN9: 51.343 | AO9: 53.134 | AP9: 54.29 | AQ9: 55.964 | AR9: 58.151 | AS9: 60.69 | AT9: 63.355 | AU9: 65.473 | AV9: 67.218 | AW9: 68.892 | AX9: 70.33 | AY9: 71.811 | AZ9: 73.346 | BA9: 74.623 | BB9: 75.216 | BC9: 76.338 | BD9: 78.235 | BE9: 79.738 | BF9: 80.789 | BG9: 82.358 | BH9: 84.411 | BI9: 86.812 | BJ9: 89.174 | BK9: 91.438 | BL9: 94.18 | BM9: 94.094 | BN9: 95.705 | BO9: 98.131 | BP9: 100 | BQ9: 101.346 | BR9: 102.868 | BS9: 103.126 | BT9: 104.235 | BU9: 106.073
A10: 3 | B10: Goods | C10: 21.957 | D10: 23.252 | E10: 22.709 | F10: 22.78 | G10: 24.619 | H10: 24.856 | I10: 24.742 | J10: 24.648 | K10: 24.503 | L10: 24.919 | M10: 25.699 | N10: 26.284 | O10: 26.418 | P10: 26.625 | Q10: 26.725 | R10: 26.863 | S10: 27.086 | T10: 27.381 | U10: 27.669 | V10: 28.278 | W10: 28.777 | X10: 29.78 | Y10: 30.934 | Z10: 32.114 | AA10: 33.079 | AB10: 33.926 | AC10: 35.949 | AD10: 40.436 | AE10: 43.703 | AF10: 45.413 | AG10: 47.837 | AH10: 50.773 | AI10: 55.574 | AJ10: 61.797 | AK10: 66.389 | AL10: 68.198 | AM10: 69.429 | AN10: 70.742 | AO10: 71.877 | AP10: 71.541 | AQ10: 73.842 | AR10: 75.788 | AS10: 78.704 | AT10: 81.927 | AU10: 83.93 | AV10: 84.943 | AW10: 85.681 | AX10: 86.552 | AY10: 87.361 | AZ10: 88.321 | BA10: 88.219 | BB10: 86.893 | BC10: 87.349 | BD10: 89.082 | BE10: 89.015 | BF10: 88.166 | BG10: 88.054 | BH10: 89.292 | BI10: 91.084 | BJ10: 92.306 | BK10: 93.331 | BL10: 96.122 | BM10: 93.812 | BN10: 95.183 | BO10: 98.773 | BP10: 100 | BQ10: 99.407 | BR10: 98.939 | BS10: 95.889 | BT10: 94.34 | BU10: 94.632
A11: 4 | B11: Durable goods | C11: 47.107 | D11: 49.516 | E11: 49.855 | F11: 50.109 | G11: 53.467 | H11: 53.8 | I11: 53.377 | J11: 52.208 | K11: 52.006 | L11: 53.259 | M11: 55.219 | N11: 56.222 | O11: 57.115 | P11: 56.899 | Q11: 57.043 | R11: 57.288 | S11: 57.507 | T11: 57.767 | U11: 57.293 | V11: 57.168 | W11: 58.086 | X11: 59.948 | Y11: 61.638 | Z11: 62.967 | AA11: 65.141 | AB11: 65.859 | AC11: 66.834 | AD11: 71.222 | AE11: 77.596 | AF11: 81.84 | AG11: 85.505 | AH11: 90.291 | AI11: 96.275 | AJ11: 104.63 | AK11: 111.627 | AL11: 115.981 | AM11: 118.332 | AN11: 120.082 | AO11: 121.352 | AP11: 122.687 | AQ11: 126.217 | AR11: 128.299 | AS11: 130.637 | AT11: 131.935 | AU11: 133.868 | AV11: 134.793 | AW11: 136.12 | AX11: 138.784 | AY11: 139.797 | AZ11: 138.386 | BA11: 135.364 | BB11: 131.538 | BC11: 127.994 | BD11: 125.717 | BE11: 123.254 | BF11: 120.143 | BG11: 115.752 | BH11: 113.488 | BI11: 112.309 | BJ11: 110.388 | BK11: 108.038 | BL11: 106.012 | BM11: 104.02 | BN11: 102.107 | BO11: 101.28 | BP11: 100 | BQ11: 97.968 | BR11: 95.496 | BS11: 93.365 | BT11: 91.183 | BU11: 89.136
A12: 5 | B12: Nondurable goods | C12: 14.869 | D12: 15.78 | E12: 15.266 | F12: 15.304 | G12: 16.615 | H12: 16.794 | I12: 16.735 | J12: 16.775 | K12: 16.666 | L12: 16.905 | M12: 17.4 | N12: 17.824 | O12: 17.85 | P12: 18.063 | Q12: 18.139 | R12: 18.238 | S12: 18.419 | T12: 18.665 | U12: 19.002 | V12: 19.61 | W12: 19.968 | X12: 20.688 | Y12: 21.583 | Z12: 22.553 | AA12: 23.19 | AB12: 23.933 | AC12: 25.863 | AD12: 29.775 | AE12: 32.076 | AF12: 33.12 | AG12: 35.018 | AH12: 37.256 | AI12: 41.271 | AJ12: 46.335 | AK12: 49.913 | AL12: 51.046 | AM12: 51.922 | AN12: 53.001 | AO12: 53.993 | AP12: 53.304 | AQ12: 55.117 | AR12: 56.869 | AS12: 59.69 | AT12: 63.112 | AU12: 64.955 | AV12: 65.898 | AW12: 66.434 | AX12: 66.788 | AY12: 67.486 | AZ12: 69.014 | BA12: 69.735 | BB12: 69.223 | BC12: 70.943 | BD12: 73.99 | BE12: 74.776 | BF12: 74.781 | BG12: 76.327 | BH12: 78.97 | BI12: 81.998 | BJ12: 84.553 | BK12: 87.041 | BL12: 91.904 | BM12: 89.467 | BN12: 92.182 | BO12: 97.652 | BP12: 100 | BQ12: 100.082 | BR12: 100.595 | BS12: 97.079 | BT12: 95.867 | BU12: 97.437
A13: 6 | B13: Services | C13: 8.037 | D13: 8.462 | E13: 8.605 | F13: 8.825 | G13: 9.26 | H13: 9.598 | I13: 9.968 | J13: 10.218 | K13: 10.391 | L13: 10.638 | M13: 10.949 | N13: 11.22 | O13: 11.521 | P13: 11.826 | Q13: 12.037 | R13: 12.265 | S13: 12.461 | T13: 12.689 | U13: 12.926 | V13: 13.298 | W13: 13.739 | X13: 14.338 | Y13: 15.078 | Z13: 15.913 | AA13: 16.781 | AB13: 17.491 | AC13: 18.336 | AD13: 19.89 | AE13: 21.595 | AF13: 23.093 | AG13: 24.841 | AH13: 26.75 | AI13: 28.994 | AJ13: 32.009 | AK13: 35.288 | AL13: 38.058 | AM13: 40.396 | AN13: 42.498 | AO13: 44.577 | AP13: 46.408 | AQ13: 47.796 | AR13: 50.082 | AS13: 52.443 | AT13: 54.846 | AU13: 56.992 | AV13: 59.018 | AW13: 61.059 | AX13: 62.719 | AY13: 64.471 | AZ13: 66.24 | BA13: 68.107 | BB13: 69.549 | BC13: 70.97 | BD13: 72.938 | BE13: 75.171 | BF13: 77.123 | BG13: 79.506 | BH13: 81.965 | BI13: 84.673 | BJ13: 87.616 | BK13: 90.516 | BL13: 93.235 | BM13: 94.231 | BN13: 95.957 | BO13: 97.814 | BP13: 100 | BQ13: 102.316 | BR13: 104.852 | BS13: 106.823 | BT13: 109.325 | BU13: 111.984
A14: 7 | B14: Gross private domestic investment | C14: 17.51 | D14: 18.838 | E14: 18.918 | F14: 19.635 | G14: 21.746 | H14: 21.61 | I14: 21.583 | J14: 21.594 | K14: 22.277 | L14: 23.529 | M14: 24.072 | N14: 24.067 | O14: 24.378 | P14: 24.518 | Q14: 24.47 | R14: 24.496 | S14: 24.43 | T14: 24.588 | U14: 24.968 | V14: 25.481 | W14: 26.132 | X14: 27.116 | Y14: 28.409 | Z14: 29.636 | AA14: 31.097 | AB14: 32.396 | AC14: 34.165 | AD14: 37.63 | AE14: 42.079 | AF14: 44.397 | AG14: 47.675 | AH14: 51.542 | AI14: 56.175 | AJ14: 61.354 | AK14: 67.148 | AL14: 70.688 | AM14: 70.939 | AN14: 71.689 | AO14: 72.571 | AP14: 74.159 | AQ14: 75.764 | AR14: 77.652 | AS14: 79.63 | AT14: 81.228 | AU14: 82.684 | AV14: 82.672 | AW14: 83.641 | AX14: 84.908 | AY14: 86.263 | AZ14: 86.227 | BA14: 86.239 | BB14: 85.706 | BC14: 85.826 | BD14: 86.862 | BE14: 87.367 | BF14: 87.927 | BG14: 88.503 | BH14: 91.157 | BI14: 94.913 | BJ14: 98.13 | BK14: 99.585 | BL14: 100.597 | BM14: 99.366 | BN14: 97.699 | BO14: 98.748 | BP14: 100 | BQ14: 100.876 | BR14: 102.959 | BS14: 103.873 | BT14: 103.914 | BU14: 105.36
A15: 8 | B15: Fixed investment | C15: 16.28 | D15: 17.642 | E15: 17.98 | F15: 18.38 | G15: 19.944 | H15: 20.42 | I15: 20.599 | J15: 20.754 | K15: 21.106 | L15: 22.315 | M15: 23.078 | N15: 23.173 | O15: 23.408 | P15: 23.554 | Q15: 23.501 | R15: 23.527 | S15: 23.47 | T15: 23.633 | U15: 24.019 | V15: 24.523 | W15: 25.185 | X15: 26.196 | Y15: 27.498 | Z15: 28.699 | AA15: 30.134 | AB15: 31.42 | AC15: 33.169 | AD15: 36.449 | AE15: 40.874 | AF15: 43.232 | AG15: 46.55 | AH15: 50.444 | AI15: 54.977 | AJ15: 60.105 | AK15: 65.624 | AL15: 69.311 | AM15: 69.575 | AN15: 70.253 | AO15: 71.277 | AP15: 73.021 | AQ15: 74.506 | AR15: 76.586 | AS15: 78.561 | AT15: 80.278 | AU15: 81.683 | AV15: 81.728 | AW15: 82.711 | AX15: 83.983 | AY15: 85.378 | AZ15: 85.45 | BA15: 85.599 | BB15: 85.133 | BC15: 85.277 | BD15: 86.486 | BE15: 87.241 | BF15: 87.5 | BG15: 88.265 | BH15: 90.843 | BI15: 94.597 | BJ15: 97.958 | BK15: 99.456 | BL15: 100.296 | BM15: 99.076 | BN15: 97.568 | BO15: 98.641 | BP15: 100 | BQ15: 101.091 | BR15: 103.25 | BS15: 104.217 | BT15: 104.357 | BU15: 105.939
A16: 9 | B16: Nonresidential | C16: 20.106 | D16: 21.785 | E16: ='GDP Implicit Price Deflator'!BU8? ->  | F16: 22.733 | G16: 24.857 | H16: 25.4 | I16: 25.645 | J16: 25.884 | K16: 26.267 | L16: 28.224 | M16: 29.603 | N16: 29.813 | O16: 30.223 | P16: 30.404 | Q16: 30.28 | R16: 30.308 | S16: 30.315 | T16: 30.513 | U16: 30.853 | V16: 31.327 | W16: 32.093 | X16: 33.237 | Y16: 34.638 | Z16: 36.296 | AA16: 37.997 | AB16: 39.297 | AC16: 40.882 | AD16: 44.857 | AE16: 50.766 | AF16: 53.562 | AG16: 57.111 | AH16: 60.93 | AI16: 65.83 | AJ16: 71.641 | AK16: 78.453 | AL16: 82.911 | AM16: 82.774 | AN16: 83.036 | AO16: 83.893 | AP16: 85.365 | AQ16: 86.339 | AR16: 88.514 | AS16: 90.572 | AT16: 92.516 | AU16: 94.267 | AV16: 93.96 | AW16: 94.161 | AX16: 94.904 | AY16: 95.849 | AZ16: 95.267 | BA16: 94.735 | BB16: 93.248 | BC16: 92.314 | BD16: 92.718 | BE16: 92.346 | BF16: 91.863 | BG16: 91.156 | BH16: 92.055 | BI16: 94.443 | BJ16: 96.745 | BK16: 98.31 | BL16: 99.832 | BM16: 99.184 | BN16: 97.416 | BO16: 98.559 | BP16: 100 | BQ16: 100.251 | BR16: 101.565 | BS16: 102.081 | BT16: 101.282 | BU16: 101.962
A17: 10 | B17: Structures | C17: 5.968 | D17: 6.639 | E17: 6.616 | F17: 6.699 | G17: 7.471 | H17: 7.669 | I17: 7.819 | J17: 7.724 | K17: 7.879 | L17: 8.553 | M17: 8.92 | N17: 8.777 | O17: 8.825 | P17: 8.814 | Q17: 8.761 | R17: 8.83 | S17: 8.905 | T17: 9.032 | U17: 9.294 | V17: 9.629 | W17: 9.929 | X17: 10.427 | Y17: 11.114 | Z17: 11.845 | AA17: 12.757 | AB17: 13.674 | AC17: 14.734 | AD17: 16.77 | AE17: 18.773 | AF17: 19.692 | AG17: 21.401 | AH17: 23.468 | AI17: 26.194 | AJ17: 28.629 | AK17: 32.566 | AL17: 35.136 | AM17: 34.241 | AN17: 34.54 | AO17: 35.361 | AP17: 36.039 | AQ17: 36.618 | AR17: 38.171 | AS17: 39.666 | AT17: 40.948 | AU17: 41.689 | AV17: 41.699 | AW17: 42.922 | AX17: 44.437 | AY17: 46.362 | AZ17: 47.54 | BA17: 49.355 | BB17: 51.612 | BC17: 53.198 | BD17: 55.283 | BE17: 58.178 | BF17: 60.603 | BG17: 62.769 | BH17: 67.416 | BI17: 75.733 | BJ17: 84.749 | BK17: 89.748 | BL17: 94.335 | BM17: 92.613 | BN17: 92.006 | BO17: 95.362 | BP17: 100 | BQ17: 101.455 | BR17: 107.475 | BS17: 109.852 | BT17: 110.296 | BU17: 113.12
A18: 11 | B18: Equipment | C18: 35.857 | D18: 38.443 | E18: 39.972 | F18: 40.979 | G18: 44.46 | H18: 45.357 | I18: 45.458 | J18: 46.542 | K18: 46.998 | L18: 50.493 | M18: 53.336 | N18: 54.375 | O18: 55.371 | P18: 55.838 | Q18: 55.535 | R18: 55.272 | S18: 54.985 | T18: 54.955 | U18: 55.026 | V18: 55.204 | W18: 56.467 | X18: 58.017 | Y18: 59.657 | Z18: 61.891 | AA18: 63.848 | AB18: 64.686 | AC18: 65.78 | AD18: 70.713 | AE18: 81.484 | AF18: 86.486 | AG18: 91.8 | AH18: 96.9 | AI18: 103.167 | AJ18: 112.25 | AK18: 120.463 | AL18: 125.415 | AM18: 125.776 | AN18: 124.748 | AO18: 124.748 | AP18: 127.254 | AQ18: 128.083 | AR18: 129.854 | AS18: 132.337 | AT18: 135.042 | AU18: 137.33 | AV18: 137.121 | AW18: 135.518 | AX18: 135.277 | AY18: 133.796 | AZ18: 130.762 | BA18: 127.156 | BB18: 121.451 | BC18: 116.763 | BD18: 114.224 | BE18: 110.858 | BF18: 108.531 | BG18: 105.725 | BH18: 104.841 | BI18: 104.598 | BJ18: 103.56 | BK18: 103.191 | BL18: 102.542 | BM18: 103.168 | BN18: 99.471 | BO18: 99.447 | BP18: 100 | BQ18: 99.787 | BR18: 99.282 | BS18: 98.743 | BT18: 97.738 | BU18: 97.183
A19: 12 | B19: Intellectual property products | C19: 22.755 | D19: 23.935 | E19: 23.984 | F19: 24.545 | G19: 26.054 | H19: 26.384 | I19: 26.844 | J19: 27.036 | K19: 27.679 | L19: 28.731 | M19: 29.644 | N19: 30.362 | O19: 30.922 | P19: 31.393 | Q19: 31.596 | R19: 31.751 | S19: 31.791 | T19: 32.282 | U19: 32.509 | V19: 33.002 | W19: 33.505 | X19: 34.676 | Y19: 36.204 | Z19: 37.929 | AA19: 39.318 | AB19: 40.49 | AC19: 42.494 | AD19: 46.461 | AE19: 50.19 | AF19: 52.408 | AG19: 54.709 | AH19: 57.557 | AI19: 61.382 | AJ19: 66.123 | AK19: 71.058 | AL19: 75.093 | AM19: 77.898 | AN19: 80.081 | AO19: 81.413 | AP19: 82.047 | AQ19: 83.518 | AR19: 86.129 | AS19: 87.24 | AT19: 88.147 | AU19: 90.271 | AV19: 89.373 | AW19: 89.998 | AX19: 90.468 | AY19: 93.134 | AZ19: 93.544 | BA19: 94.052 | BB19: 93.595 | BC19: 95.105 | BD19: 97.814 | BE19: 97.684 | BF19: 96.376 | BG19: 95.647 | BH19: 95.335 | BI19: 95.952 | BJ19: 97.088 | BK19: 98.284 | BL19: 99.834 | BM19: 98.589 | BN19: 98.306 | BO19: 99.517 | BP19: 100 | BQ19: 100.081 | BR19: 100.734 | BS19: 101.516 | BT19: 100.208 | BU19: 101.294
A20: 13 | B20: Residential | C20: 9.402 | D20: 10.192 | E20: 10.327 | F20: 10.582 | G20: 11.34 | H20: 11.652 | I20: 11.736 | J20: 11.783 | K20: 12.028 | L20: 12.335 | M20: 12.368 | N20: 12.338 | O20: 12.374 | P20: 12.458 | Q20: 12.477 | R20: 12.497 | S20: 12.399 | T20: 12.496 | U20: 12.846 | V20: 13.312 | W20: 13.77 | X20: 14.498 | Y20: 15.518 | Z20: 16.016 | AA20: 16.943 | AB20: 17.975 | AC20: 19.571 | AD20: 21.593 | AE20: 23.59 | AF20: 25.117 | AG20: 27.683 | AH20: 31.082 | AI20: 34.593 | AJ20: 38.324 | AK20: 41.425 | AL20: 43.646 | AM20: 44.68 | AN20: 46.003 | AO20: 47.267 | AP20: 49.351 | AQ20: 51.486 | AR20: 53.279 | AS20: 55.02 | AT20: 56.288 | AU20: 57.021 | AV20: 57.723 | AW20: 60.074 | AX20: 62.247 | AY20: 64.473 | AZ20: 65.856 | BA20: 67.444 | BB20: 69.223 | BC20: 71.816 | BD20: 75.004 | BE20: 78.564 | BF20: 80.51 | BG20: 84.325 | BH20: 90.243 | BI20: 96.706 | BJ20: 102.355 | BK20: 103.708 | BL20: 102.249 | BM20: 98.671 | BN20: 98.317 | BO20: 99.049 | BP20: 100 | BQ20: 105.054 | BR20: 111.106 | BS20: 114.1 | BT20: 118.185 | BU20: 123.495
A21: 14 | B21: Change in private inventories | C21: --- | D21: --- | E21: --- | F21: --- | G21: --- | H21: --- | I21: --- | J21: --- | K21: --- | L21: --- | M21: --- | N21: --- | O21: --- | P21: --- | Q21: --- | R21: --- | S21: --- | T21: --- | U21: --- | V21: --- | W21: --- | X21: --- | Y21: --- | Z21: --- | AA21: --- | AB21: --- | AC21: --- | AD21: --- | AE21: --- | AF21: --- | AG21: --- | AH21: --- | AI21: --- | AJ21: --- | AK21: --- | AL21: --- | AM21: --- | AN21: --- | AO21: --- | AP21: --- | AQ21: --- | AR21: --- | AS21: --- | AT21: --- | AU21: --- | AV21: --- | AW21: --- | AX21: --- | AY21: --- | AZ21: --- | BA21: --- | BB21: --- | BC21: --- | BD21: --- | BE21: --- | BF21: --- | BG21: --- | BH21: --- | BI21: --- | BJ21: --- | BK21: --- | BL21: --- | BM21: --- | BN21: --- | BO21: --- | BP21: --- | BQ21: --- | BR21: --- | BS21: --- | BT21: --- | BU21: ---
A22: 15 | B22: Net exports of goods and services | C22: --- | D22: --- | E22: --- | F22: --- | G22: --- | H22: --- | I22: --- | J22: --- | K22: --- | L22: --- | M22: --- | N22: --- | O22: --- | P22: --- | Q22: --- | R22: --- | S22: --- | T22: --- | U22: --- | V22: --- | W22: --- | X22: --- | Y22: --- | Z22: --- | AA22: --- | AB22: --- | AC22: --- | AD22: --- | AE22: --- | AF22: --- | AG22: --- | AH22: --- | AI22: --- | AJ22: --- | AK22: --- | AL22: --- | AM22: --- | AN22: --- | AO22: --- | AP22: --- | AQ22: --- | AR22: --- | AS22: --- | AT22: --- | AU22: --- | AV22: --- | AW22: --- | AX22: --- | AY22: --- | AZ22: --- | BA22: --- | BB22: --- | BC22: --- | BD22: --- | BE22: --- | BF22: --- | BG22: --- | BH22: --- | BI22: --- | BJ22: --- | BK22: --- | BL22: --- | BM22: --- | BN22: --- | BO22: --- | BP22: --- | BQ22: --- | BR22: --- | BS22: --- | BT22: --- | BU22: ---
A23: 16 | B23: Exports | C23: 20.416 | D23: 21.505 | E23: 20.222 | F23: 19.691 | G23: 22.248 | H23: 22.384 | I23: 22.321 | J23: 22.017 | K23: 22.206 | L23: 22.948 | M23: 23.819 | N23: 23.578 | O23: 23.63 | P23: 23.962 | Q23: 24.325 | R23: 24.384 | S23: 24.336 | T23: 24.531 | U23: 25.312 | V23: 26.079 | W23: 27.084 | X23: 27.664 | Y23: 28.589 | Z23: 29.711 | AA23: 30.796 | AB23: 32.145 | AC23: 36.382 | AD23: 44.807 | AE23: 49.388 | AF23: 51.009 | AG23: 53.088 | AH23: 56.317 | AI23: 63.101 | AJ23: 69.503 | AK23: 74.65 | AL23: 75.006 | AM23: 75.311 | AN23: 76.016 | AO23: 73.753 | AP23: 72.523 | AQ23: 74.124 | AR23: 77.92 | AS23: 79.21 | AT23: 79.657 | AU23: 80.545 | AV23: 80.153 | AW23: 80.277 | AX23: 81.21 | AY23: 83.025 | AZ23: 81.923 | BA23: 80.479 | BB23: 78.574 | BC23: 77.971 | BD23: 79.467 | BE23: 78.835 | BF23: 78.201 | BG23: 79.4 | BH23: 82.284 | BI23: 85.131 | BJ23: 87.842 | BK23: 91.139 | BL23: 95.41 | BM23: 89.694 | BN23: 93.348 | BO23: 99.242 | BP23: 100 | BQ23: 100.168 | BR23: 100.169 | BS23: 95.146 | BT23: 93.248 | BU23: 95.923
A24: 17 | B24: Goods | C24: 23.684 | D24: 25.21 | E24: 23.356 | F24: 22.579 | G24: 25.886 | H24: 25.772 | I24: 25.511 | J24: 25.148 | K24: 25.385 | L24: 26.348 | M24: 27.206 | N24: 26.909 | O24: 27.17 | P24: 27.352 | Q24: 27.872 | R24: 27.655 | S24: 27.566 | T24: 27.752 | U24: 28.718 | V24: 29.699 | W24: 30.944 | X24: 31.42 | Y24: 32.394 | Z24: 33.86 | AA24: 34.766 | AB24: 35.69 | AC24: 41.316 | AD24: 51.983 | AE24: 57.701 | AF24: 59.265 | AG24: 61.468 | AH24: 64.999 | AI24: 73.431 | AJ24: 80.464 | AK24: 86.18 | AL24: 85.472 | AM24: 84.975 | AN24: 85.741 | AO24: 81.464 | AP24: 78.668 | AQ24: 80.426 | AR24: 85.384 | AS24: 86.476 | AT24: 85.713 | AU24: 85.674 | AV24: 84.338 | AW24: 83.914 | AX24: 84.873 | AY24: 86.887 | AZ24: 84.684 | BA24: 82.336 | BB24: 79.74 | BC24: 78.661 | BD24: 80.024 | BE24: 79.557 | BF24: 78.729 | BG24: 79.506 | BH24: 82.315 | BI24: 84.934 | BJ24: 87.586 | BK24: 91.002 | BL24: 95.713 | BM24: 88.921 | BN24: 92.967 | BO24: 99.793 | BP24: 100 | BQ24: 99.312 | BR24: 98.323 | BS24: 91.276 | BT24: 87.822 | BU24: 90.49
A25: 18 | B25: Services | C25: 13.404 | D25: 13.259 | E25: 13.551 | F25: 13.685 | G25: 14.404 | H25: 15.227 | I25: 15.681 | J25: 15.512 | K25: 15.583 | L25: 15.787 | M25: 16.778 | N25: 16.664 | O25: 16.287 | P25: 16.857 | Q25: 16.91 | R25: 17.489 | S25: 17.521 | T25: 17.727 | U25: 18.128 | V25: 18.463 | W25: 18.987 | X25: 19.734 | Y25: 20.536 | Z25: 20.975 | AA25: 22.348 | AB25: 24.432 | AC25: 25.645 | AD25: 28.883 | AE25: 30.878 | AF25: 32.665 | AG25: 34.498 | AH25: 37.076 | AI25: 40.127 | AJ25: 45.237 | AK25: 49.182 | AL25: 51.966 | AM25: 54.035 | AN25: 54.6 | AO25: 56.565 | AP25: 58.497 | AQ25: 59.75 | AR25: 61.082 | AS25: 62.774 | AT25: 65.748 | AU25: 68.555 | AV25: 70.165 | AW25: 71.456 | AX25: 72.323 | AY25: 73.683 | AZ25: 75.137 | BA25: 75.898 | BB25: 75.74 | BC25: 76.325 | BD25: 78.159 | BE25: 77.107 | BF25: 76.952 | BG25: 79.172 | BH25: 82.236 | BI25: 85.634 | BJ25: 88.49 | BK25: 91.504 | BL25: 94.746 | BM25: 91.386 | BN25: 94.197 | BO25: 97.999 | BP25: 100 | BQ25: 102.099 | BR25: 104.336 | BS25: 103.838 | BT25: 105.395 | BU25: 108.084
A26: 19 | B26: Imports | C26: 13.584 | D26: 14.763 | E26: 14.07 | F26: 14.945 | G26: 18.063 | H26: 17.409 | I26: 16.662 | J26: 16.889 | K26: 16.798 | L26: 17.094 | M26: 17.289 | N26: 16.571 | O26: 16.72 | P26: 16.881 | Q26: 16.881 | R26: 16.682 | S26: 17.006 | T26: 17.364 | U26: 17.606 | V26: 18.016 | W26: 18.086 | X26: 18.361 | Y26: 18.839 | Z26: 19.954 | AA26: 21.179 | AB26: 22.662 | AC26: 26.601 | AD26: 38.058 | AE26: 41.226 | AF26: 42.467 | AG26: 46.209 | AH26: 49.471 | AI26: 57.93 | AJ26: 72.169 | AK26: 76.06 | AL26: 73.507 | AM26: 70.751 | AN26: 70.139 | AO26: 67.836 | AP26: 67.844 | AQ26: 71.935 | AR26: 75.377 | AS26: 77.024 | AT26: 79.233 | AU26: 78.573 | AV26: 78.636 | AW26: 78.033 | AX26: 78.766 | AY26: 80.924 | AZ26: 79.514 | BA26: 76.75 | BB26: 72.618 | BC26: 73.019 | BD26: 76.221 | BE26: 74.223 | BF26: 73.242 | BG26: 75.454 | BH26: 79.06 | BI26: 83.703 | BJ26: 86.909 | BK26: 89.921 | BL26: 98.96 | BM26: 87.987 | BN26: 92.783 | BO26: 99.826 | BP26: 100 | BQ26: 98.636 | BR26: 97.777 | BS26: 89.728 | BT26: 86.53 | BU26: 88.511
A27: 20 | B27: Goods | C27: 13.532 | D27: 14.943 | E27: 14.146 | F27: 15.302 | G27: 19.21 | H27: 18.263 | I27: 17.48 | J27: 17.856 | K27: 17.808 | L27: 18.157 | M27: 18.319 | N27: 17.362 | O27: 17.488 | P27: 17.675 | Q27: 17.506 | R27: 17.088 | S27: 17.245 | T27: 17.71 | U27: 17.798 | V27: 18.199 | W27: 18.225 | X27: 18.47 | Y27: 18.99 | Z27: 20.281 | AA27: 21.32 | AB27: 22.954 | AC27: 27.055 | AD27: 40.486 | AE27: 43.878 | AF27: 45.051 | AG27: 49.178 | AH27: 52.456 | AI27: 61.854 | AJ27: 78.065 | AK27: 82.426 | AL27: 79.111 | AM27: 75.802 | AN27: 75.28 | AO27: 72.318 | AP27: 70.71 | AQ27: 75.73 | AR27: 79.338 | AS27: 81.558 | AT27: 83.056 | AU27: 81.486 | AV27: 81.04 | AW27: 80.134 | AX27: 80.718 | AY27: 82.87 | AZ27: 80.77 | BA27: 77.434 | BB27: 72.757 | BC27: 72.8 | BD27: 76.641 | BE27: 74.464 | BF27: 73.097 | BG27: 74.687 | BH27: 78.232 | BI27: 83.183 | BJ27: 86.528 | BK27: 89.429 | BL27: 99.234 | BM27: 86.628 | BN27: 92.052 | BO27: 99.913 | BP27: 100 | BQ27: 98.054 | BR27: 96.715 | BS27: 87.464 | BT27: 83.768 | BU27: 85.761
A28: 21 | B28: Services | C28: 14.128 | D28: 14.627 | E28: 14.222 | F28: 14.25 | G28: 15.092 | H28: 15.124 | I28: 14.472 | J28: 14.432 | K28: 14.278 | L28: 14.471 | M28: 14.71 | N28: 14.405 | O28: 14.583 | P28: 14.691 | Q28: 14.974 | R28: 15.17 | S28: 15.793 | T28: 15.927 | U28: 16.483 | V28: 16.896 | W28: 17.06 | X28: 17.393 | Y28: 17.747 | Z28: 18.38 | AA28: 20.045 | AB28: 21.043 | AC28: 24.341 | AD28: 28.947 | AE28: 31.294 | AF28: 32.708 | AG28: 35.033 | AH28: 38.215 | AI28: 43.157 | AJ28: 50.086 | AK28: 52.264 | AL28: 52.303 | AM28: 51.444 | AN28: 50.56 | AO28: 50.498 | AP28: 55.969 | AQ28: 56.763 | AR28: 59.533 | AS28: 59.218 | AT28: 63.655 | AU28: 65.983 | AV28: 67.836 | AW28: 68.411 | AX28: 69.753 | AY28: 71.931 | AZ28: 73.726 | BA28: 73.724 | BB28: 72.282 | BC28: 74.537 | BD28: 74.259 | BE28: 73.214 | BF28: 74.271 | BG28: 79.866 | BH28: 83.818 | BI28: 86.721 | BJ28: 89.134 | BK28: 92.77 | BL28: 97.798 | BM28: 94.511 | BN28: 96.416 | BO28: 99.392 | BP28: 100 | BQ28: 101.575 | BR28: 103.196 | BS28: 101.498 | BT28: 100.918 | BU28: 102.835
A29: 22 | B29: Government consumption expenditures and gross investment | C29: 7.62 | D29: 7.93 | E29: 8.151 | F29: 8.234 | G29: 8.738 | H29: 8.917 | I29: 9.017 | J29: 9.208 | K29: 9.567 | L29: 10.081 | M29: 10.519 | N29: 10.841 | O29: 10.972 | P29: 11.093 | Q29: 11.285 | R29: 11.498 | S29: 11.778 | T29: 12.088 | U29: 12.416 | V29: 12.91 | W29: 13.353 | X29: 14.068 | Y29: 14.892 | Z29: 16.078 | AA29: 17.351 | AB29: 18.661 | AC29: 19.937 | AD29: 21.851 | AE29: 23.87 | AF29: 25.181 | AG29: 26.739 | AH29: 28.507 | AI29: 30.852 | AJ29: 34.045 | AK29: 37.424 | AL29: 39.971 | AM29: 41.516 | AN29: 43.317 | AO29: 44.659 | AP29: 45.409 | AQ29: 46.635 | AR29: 48.177 | AS29: 50.016 | AT29: 52.113 | AU29: 54.005 | AV29: 55.642 | AW29: 56.953 | AX29: 58.463 | AY29: 60.123 | AZ29: 61.355 | BA29: 62.56 | BB29: 63.624 | BC29: 65.778 | BD29: 68.601 | BE29: 70.567 | BF29: 72.393 | BG29: 75.028 | BH29: 78.153 | BI29: 82.11 | BJ29: 85.661 | BK29: 89.492 | BL29: 93.317 | BM29: 92.931 | BN29: 95.386 | BO29: 98.285 | BP29: 100 | BQ29: 102.332 | BR29: 104.445 | BS29: 104.717 | BT29: 105.059 | BU29: 107.797
A30: 23 | B30: Federal | C30: 9.894 | D30: 9.871 | E30: 10.266 | F30: 10.393 | G30: 10.811 | H30: 10.93 | I30: 11.015 | J30: 11.278 | K30: 11.822 | L30: 12.395 | M30: 12.937 | N30: 13.446 | O30: 13.56 | P30: 13.655 | Q30: 13.818 | R30: 14.012 | S30: 14.364 | T30: 14.811 | U30: 15.179 | V30: 15.691 | W30: 16.041 | X30: 16.848 | Y30: 17.714 | Z30: 19.108 | AA30: 20.669 | AB30: 22.484 | AC30: 24.051 | AD30: 25.968 | AE30: 28.254 | AF30: 30.012 | AG30: 31.857 | AH30: 34.008 | AI30: 36.565 | AJ30: 40.099 | AK30: 43.843 | AL30: 46.948 | AM30: 48.499 | AN30: 50.637 | AO30: 51.712 | AP30: 51.957 | AQ30: 52.318 | AR30: 54.025 | AS30: 55.534 | AT30: 57.25 | AU30: 59.309 | AV30: 60.824 | AW30: 62.151 | AX30: 63.861 | AY30: 65.838 | AZ30: 66.937 | BA30: 67.972 | BB30: 68.841 | BC30: 70.519 | BD30: 72.886 | BE30: 74.236 | BF30: 76.631 | BG30: 80.008 | BH30: 82.76 | BI30: 86.204 | BJ30: 88.949 | BK30: 91.59 | BL30: 94.404 | BM30: 94.214 | BN30: 96.421 | BO30: 99.07 | BP30: 100 | BQ30: 100.931 | BR30: 102.618 | BS30: 103.2 | BT30: 103.737 | BU30: 105.753
A31: 24 | B31: National defense | C31: 9.573 | D31: 9.604 | E31: 9.924 | F31: 10.137 | G31: 10.449 | H31: 10.506 | I31: 10.545 | J31: 10.82 | K31: 11.366 | L31: 11.985 | M31: 12.511 | N31: 12.981 | O31: 13.071 | P31: 13.162 | Q31: 13.275 | R31: 13.437 | S31: 13.794 | T31: 14.185 | U31: 14.556 | V31: 15.065 | W31: 15.425 | X31: 16.195 | Y31: 17.018 | Z31: 18.293 | AA31: 19.815 | AB31: 21.881 | AC31: 23.485 | AD31: 25.4 | AE31: 27.545 | AF31: 29.345 | AG31: 31.267 | AH31: 33.561 | AI31: 36.214 | AJ31: 39.919 | AK31: 43.747 | AL31: 47.039 | AM31: 48.778 | AN31: 51.013 | AO31: 51.872 | AP31: 51.894 | AQ31: 52.267 | AR31: 53.904 | AS31: 55.365 | AT31: 57.162 | AU31: 58.964 | AV31: 60.678 | AW31: 61.615 | AX31: 63.229 | AY31: 65.027 | AZ31: 66.114 | BA31: 67.035 | BB31: 67.871 | BC31: 69.559 | BD31: 71.908 | BE31: 73.27 | BF31: 75.714 | BG31: 79.505 | BH31: 82.263 | BI31: 86.011 | BJ31: 89.022 | BK31: 91.75 | BL31: 94.801 | BM31: 94.126 | BN31: 96.128 | BO31: 98.946 | BP31: 100 | BQ31: 100.609 | BR31: 101.995 | BS31: 102.256 | BT31: 102.557 | BU31: 104.209
A32: 25 | B32: Nondefense | C32: 10.079 | D32: 9.839 | E32: 10.43 | F32: 10.267 | G32: 11.129 | H32: 11.718 | I32: 12.165 | J32: 12.286 | K32: 12.707 | L32: 12.844 | M32: 13.392 | N32: 14.083 | O32: 14.384 | P32: 14.49 | Q32: 14.909 | R32: 15.248 | S32: 15.542 | T32: 16.175 | U32: 16.514 | V32: 17.005 | W32: 17.289 | X32: 18.18 | Y32: 19.154 | Z32: 20.906 | AA32: 22.521 | AB32: 23.579 | AC32: 25.018 | AD32: 26.904 | AE32: 29.484 | AF32: 31.124 | AG32: 32.782 | AH32: 34.612 | AI32: 36.952 | AJ32: 40.106 | AK32: 43.643 | AL32: 46.304 | AM32: 47.397 | AN32: 49.279 | AO32: 50.907 | AP32: 51.748 | AQ32: 52.076 | AR32: 53.974 | AS32: 55.605 | AT32: 57.093 | AU32: 59.787 | AV32: 60.825 | AW32: 62.994 | AX32: 64.898 | AY32: 67.223 | AZ32: 68.344 | BA32: 69.591 | BB32: 70.518 | BC32: 72.178 | BD32: 74.578 | BE32: 75.906 | BF32: 78.222 | BG32: 80.895 | BH32: 83.637 | BI32: 86.531 | BJ32: 88.799 | BK32: 91.282 | BL32: 93.664 | BM32: 94.364 | BN32: 96.942 | BO32: 99.289 | BP32: 100 | BQ32: 101.476 | BR32: 103.656 | BS32: 104.739 | BT32: 105.631 | BU32: 108.188
A33: 26 | B33: State and local | C33: 5.784 | D33: 6.469 | E33: 6.527 | F33: 6.571 | G33: 7.219 | H33: 7.534 | I33: 7.683 | J33: 7.798 | K33: 7.958 | L33: 8.463 | M33: 8.826 | N33: 8.964 | O33: 9.127 | P33: 9.286 | Q33: 9.523 | R33: 9.771 | S33: 9.999 | T33: 10.194 | U33: 10.502 | V33: 11.006 | W33: 11.564 | X33: 12.234 | Y33: 13.063 | Z33: 14.117 | AA33: 15.198 | AB33: 16.163 | AC33: 17.246 | AD33: 19.157 | AE33: 20.999 | AF33: 22.024 | AG33: 23.394 | AH33: 24.914 | AI33: 27.114 | AJ33: 30.081 | AK33: 33.226 | AL33: 35.401 | AM33: 36.964 | AN33: 38.544 | AO33: 40.113 | AP33: 41.269 | AQ33: 43.196 | AR33: 44.64 | AS33: 46.752 | AT33: 49.153 | AU33: 50.953 | AV33: 52.69 | AW33: 54.002 | AX33: 55.394 | AY33: 56.871 | AZ33: 58.177 | BA33: 59.471 | BB33: 60.63 | BC33: 63.008 | BD33: 66.032 | BE33: 68.281 | BF33: 69.815 | BG33: 72.05 | BH33: 75.369 | BI33: 79.609 | BJ33: 83.617 | BK33: 88.133 | BL33: 92.558 | BM33: 92.048 | BN33: 94.669 | BO33: 97.739 | BP33: 100 | BQ33: 103.279 | BR33: 105.67 | BS33: 105.748 | BT33: 105.97 | BU33: 109.155
B34: Addendum: | C34: --- | D34: --- | E34: --- | F34: --- | G34: --- | H34: --- | I34: --- | J34: --- | K34: --- | L34: --- | M34: --- | N34: --- | O34: --- | P34: --- | Q34: --- | R34: --- | S34: --- | T34: --- | U34: --- | V34: --- | W34: --- | X34: --- | Y34: --- | Z34: --- | AA34: --- | AB34: --- | AC34: --- | AD34: --- | AE34: --- | AF34: --- | AG34: --- | AH34: --- | AI34: --- | AJ34: --- | AK34: --- | AL34: --- | AM34: --- | AN34: --- | AO34: --- | AP34: --- | AQ34: --- | AR34: --- | AS34: --- | AT34: --- | AU34: --- | AV34: --- | AW34: --- | AX34: --- | AY34: --- | AZ34: --- | BA34: --- | BB34: --- | BC34: --- | BD34: --- | BE34: --- | BF34: --- | BG34: --- | BH34: --- | BI34: --- | BJ34: --- | BK34: --- | BL34: --- | BM34: --- | BN34: --- | BO34: --- | BP34: --- | BQ34: --- | BR34: --- | BS34: --- | BT34: --- | BU34: ---
A35: 27 | B35: Gross national product | C35: 12.241 | D35: 12.928 | E35: 12.906 | F35: 13.066 | G35: 13.991 | H35: 14.233 | I35: 14.405 | J35: 14.539 | K35: 14.787 | L35: 15.29 | M35: 15.797 | N35: 16.157 | O35: 16.379 | P35: 16.603 | Q35: 16.78 | R35: 16.986 | S35: 17.182 | T35: 17.444 | U35: 17.765 | V35: 18.263 | W35: 18.793 | X35: 19.594 | Y35: 20.554 | Z35: 21.639 | AA35: 22.738 | AB35: 23.721 | AC35: 25.024 | AD35: 27.271 | AE35: 29.8 | AF35: 31.446 | AG35: 33.401 | AH35: 35.752 | AI35: 38.719 | AJ35: 42.213 | AK35: 46.211 | AL35: 49.065 | AM35: 50.992 | AN35: 52.832 | AO35: 54.503 | AP35: 55.606 | AQ35: 56.997 | AR35: 59.01 | AS35: 61.33 | AT35: 63.637 | AU35: 65.801 | AV35: 67.299 | AW35: 68.891 | AX35: 70.36 | AY35: 71.843 | AZ35: 73.161 | BA35: 74.423 | BB35: 75.263 | BC35: 76.348 | BD35: 78.053 | BE35: 79.764 | BF35: 81.026 | BG35: 82.533 | BH35: 84.754 | BI35: 87.395 | BJ35: 90.041 | BK35: 92.46 | BL35: 94.268 | BM35: 94.997 | BN35: 96.102 | BO35: 98.118 | BP35: 100 | BQ35: 101.754 | BR35: 103.667 | BS35: 104.755 | BT35: 105.903 | BU35: 107.903

Sheet AVERT_2017
A1: 2017 AVERT Emission Factors
A3: National Emission Factors
A4: National Weighted Averages (lb/MWh)
B5: Wind | C5: Utility PV | D5: Portfolio EE | E5: Uniform EE
A6: Avoided CO2 Rate | B6: 1485.004031 | C6: 1486.147687 | D6: 1592.11596 | E6: 1597.681215
A7: Avoided NOx Rate | B7: 0.8844894484 | C7: 0.9363038052 | D7: 0.9868694937 | E7: 0.9630346229
A8: Avoided SO2 Rate | B8: 0.9953015627 | C8: 0.9629466922 | D8: 1.047395005 | E8: 1.07184381
A9: Avoided PM2.5 Rate | B9: 0.1076863598 | C9: 0.1088573891 | D9: 0.1166301963 | E9: 0.1162165071
A10: National factors presented here reflect a weighted average of the avoided emission rates of AVERT’s 10 regions. Averages are weighted by the fraction of 2017 fossil generation in each region.
A13: Regional Emission Factors
A14: Avoided CO2 Rate (lb/MWh) | G14: Avoided NOx Rate (lb/MWh)
B15: Wind | C15: Utility PV | D15: Portfolio EE | E15: Uniform EE | H15: Wind | I15: Utility PV | J15: Portfolio EE | K15: Uniform EE
A16: Northeast | B16: 1057.455386 | C16: 1074.638279 | D16: 1163.232794 | E16: 1140.273877 | G16: Northeast | H16: 0.3688380931 | I16: 0.463047905 | J16: 0.5065633961 | K16: 0.4310301251
A17: Great Lakes/Mid-Atlantic | B17: 1595.718118 | C17: 1594.8638 | D17: 1712.437371 | E17: 1708.940596 | G17: Great Lakes/Mid-Atlantic | H17: 0.9336855478 | I17: 0.9417670204 | J17: 1.008260355 | K17: 0.9859061507
A18: Southeast | B18: 1406.131974 | C18: 1452.249891 | D18: 1547.952896 | E18: 1534.075761 | G18: Southeast | H18: 0.8294003699 | I18: 0.9559659741 | J18: 0.973846226 | K18: 0.9305264299
A19: Lower Midwest | B19: 1746.992983 | C19: 1667.089741 | D19: 1808.528628 | E19: 1855.158112 | G19: Lower Midwest | H19: 1.099505454 | I19: 1.165182848 | J19: 1.243942043 | K19: 1.202439471
A20: Upper Midwest | B20: 1883.775102 | C20: 1793.612062 | D20: 1966.355967 | E20: 2009.004524 | G20: Upper Midwest | H20: 1.306757151 | I20: 1.227959596 | J20: 1.351229517 | K20: 1.380723488
A21: Rocky Mountains | B21: 1612.327692 | C21: 1562.306601 | D21: 1702.044955 | E21: 1737.861701 | G21: Rocky Mountains | H21: 1.328613038 | I21: 1.270776805 | J21: 1.380895885 | K21: 1.423136173
A22: Texas | B22: 1328.823491 | C22: 1265.796578 | D22: 1361.05462 | E22: 1395.116889 | G22: Texas | H22: 0.5996509107 | I22: 0.6630687358 | J22: 0.6941318566 | K22: 0.6533179696
A23: Southwest | B23: 1263.577761 | C23: 1267.851759 | D23: 1359.248888 | E23: 1364.842082 | G23: Southwest | H23: 0.8959941941 | I23: 0.9366767601 | J23: 1.003952541 | K23: 0.9866266804
A24: Northwest | B24: 1558.211861 | C24: 1591.091901 | D24: 1653.161846 | E24: 1696.824329 | G24: Northwest | H24: 1.182070586 | I24: 1.222645825 | J24: 1.24497765 | K24: 1.292194916
A25: California | B25: 1033.553283 | C25: 1050.966464 | D25: 1136.153583 | E25: 1127.381834 | G25: California | H25: 0.3218897602 | I25: 0.3207245032 | J25: 0.3317303941 | K25: 0.3448741623
A27: Avoided SO2 Rate (lb/MWh) | G27: Avoided PM2.5 Rate (lb/MWh)
B28: Wind | C28: Utility PV | D28: Portfolio EE | E28: Uniform EE | H28: Wind | I28: Utility PV | J28: Portfolio EE | K28: Uniform EE
A29: Northeast | B29: 0.2700045624 | C29: 0.3022550256 | D29: 0.3349645371 | E29: 0.2830912254 | G29: Northeast | H29: 0.0404595342 | I29: 0.04604820906 | J29: 0.04975547939 | K29: 0.0451665205
A30: Great Lakes/Mid-Atlantic | B30: 1.083690997 | C30: 1.196831765 | D30: 1.280023888 | E30: 1.254978784 | G30: Great Lakes/Mid-Atlantic | H30: 0.1964647478 | I30: 0.1953308848 | J30: 0.210774369 | K30: 0.2103850853
A31: Southeast | B31: 0.7310971326 | C31: 0.7468194794 | D31: 0.7914408541 | E31: 0.7884920012 | G31: Southeast | H31: 0.09477077642 | I31: 0.1020015478 | J31: 0.1069264894 | K31: 0.1045138598
A32: Lower Midwest | B32: 1.800260518 | C32: 1.609972578 | D32: 1.773407371 | E32: 1.877604839 | G32: Lower Midwest | H32: 0.0921459494 | I32: 0.09155564662 | J32: 0.09862305996 | K32: 0.09891248931
A33: Upper Midwest | B33: 1.937425501 | C33: 1.673272384 | D33: 1.910009908 | E33: 2.028600387 | G33: Upper Midwest | H33: 0.09195904268 | I33: 0.0882279432 | J33: 0.09653618873 | K33: 0.09855173383
A34: Rocky Mountains | B34: 0.5762364034 | C34: 0.516157889 | D34: 0.5666787901 | E34: 0.6004408961 | G34: Rocky Mountains | H34: 0.03246208695 | I34: 0.03537870057 | J34: 0.03782357682 | K34: 0.0363871885
A35: Texas | B35: 1.306971709 | C35: 1.046111144 | D35: 1.17702582 | E35: 1.317268707 | G35: Texas | H35: 0.07303512347 | I35: 0.0678501306 | J35: 0.07369067244 | K35: 0.07633690173
A36: Southwest | B36: 0.2659731494 | C36: 0.2204068517 | D36: 0.2006300942 | E36: 0.2431762627 | G36: Southwest | H36: 0.07221675411 | I36: 0.07102483548 | J36: 0.07312260276 | K36: 0.07540075604
A37: Northwest | B37: 0.8315246101 | C37: 0.8628344427 | D37: 0.9264122546 | E37: 0.922289261 | G37: Northwest | H37: 0.08045391662 | I37: 0.08190837812 | J37: 0.08528471715 | K37: 0.08775666425
A38: California | B38: 0.07232567559 | C38: 0.0688900343 | D38: 0.07386534555 | E38: 0.07786270886 | G38: California | H38: 0.0441364434 | I38: 0.04544224442 | J38: 0.04828204595 | K38: 0.04810972169
A40: Wind = Wind power generation
A41: Utility PV = Utility-scale photovoltaic power generation
A42: Portfolio EE = Represents a wide range of EE program types
A43: Uniform EE = Represents consistent energy savings throughout the year
A46: Source: https://www.epa.gov/statelocalenergy/avoided-emission-factors-generated-avert
